Body Name,Body,Date,Department,Beneficiary,Summary of Purpose (SeRCOP),Amount,Merchant Code,Transaction Number
Sandwell Metropolitan Borough Council,http://www.sandwell.gov.uk/info/200202/performance_and_spending/3233/government_procurement_cards,04-Oct-2018,Adult Social Care Health and Wellbeing - Total,AMZN MKTP UK AMAZON.CO,Total Adult Social Care,64.52,Equipment & Furniture,1819Q03_PC00001
Sandwell Metropolitan Borough Council,http://www.sandwell.gov.uk/info/200202/performance_and_spending/3233/government_procurement_cards,04-Oct-2018,Childrens Services,MEDIA & COMMUNICATIONS,Childrens Services,400,Telephones,1819Q03_PC00002
Sandwell Metropolitan Borough Council,http://www.sandwell.gov.uk/info/200202/performance_and_spending/3233/government_procurement_cards,04-Oct-2018,Regeneration & Growth,AMZN Mktp UK,Regeneration And The Economy,57.2,Printing Stationery&Gen Office,1819Q03_PC00003
Sandwell Metropolitan Borough Council,http://www.sandwell.gov.uk/info/200202/performance_and_spending/3233/government_procurement_cards,04-Oct-2018,Housing & Communities,AMZN Mktp UK,Neighbourhoods,10.41,Materials & Consumables,1819Q03_PC00004
Sandwell Metropolitan Borough Council,http://www.sandwell.gov.uk/info/200202/performance_and_spending/3233/government_procurement_cards,04-Oct-2018,Adult Social Care Health and Wellbeing - Total,ARGOS OLDBURY,Total Adult Social Care,83.32,Equipment & Furniture,1819Q03_PC00005
Sandwell Metropolitan Borough Council,http://www.sandwell.gov.uk/info/200202/performance_and_spending/3233/government_procurement_cards,04-Oct-2018,Housing & Communities,Trainline,Neighbourhoods,23.33,Operational Services,1819Q03_PC00006
Sandwell Metropolitan Borough Council,http://www.sandwell.gov.uk/info/200202/performance_and_spending/3233/government_procurement_cards,04-Oct-2018,Housing & Communities,SMITH YORK FINE ART PU,Neighbourhoods,208.33,Printing Stationery&Gen Office,1819Q03_PC00007
Sandwell Metropolitan Borough Council,http://www.sandwell.gov.uk/info/200202/performance_and_spending/3233/government_procurement_cards,04-Oct-2018,Resources (Inc SIU),Trainline,Assistant Chief Executive (Excl SIU),225.04,Public Transport,1819Q03_PC00008
Sandwell Metropolitan Borough Council,http://www.sandwell.gov.uk/info/200202/performance_and_spending/3233/government_procurement_cards,04-Oct-2018,Childrens Services,HOMEBASE LTD 085,Childrens Services,8,Materials & Consumables,1819Q03_PC00009
Sandwell Metropolitan Borough Council,http://www.sandwell.gov.uk/info/200202/performance_and_spending/3233/government_procurement_cards,04-Oct-2018,Childrens Services,POST OFFICE COUNTER,Childrens Services,7.3,"Postages, Carriage & Courier Services",1819Q03_PC00010
Sandwell Metropolitan Borough Council,http://www.sandwell.gov.uk/info/200202/performance_and_spending/3233/government_procurement_cards,04-Oct-2018,Housing & Communities,DARLASTON BUILDERS MER,Neighbourhoods,77.42,R& M - Building Maint&Imp.,1819Q03_PC00011
Sandwell Metropolitan Borough Council,http://www.sandwell.gov.uk/info/200202/performance_and_spending/3233/government_procurement_cards,04-Oct-2018,Housing & Communities,POUNDLAND,Neighbourhoods,5.08,R& M - Building Maint&Imp.,1819Q03_PC00012
Sandwell Metropolitan Borough Council,http://www.sandwell.gov.uk/info/200202/performance_and_spending/3233/government_procurement_cards,04-Oct-2018,Housing & Communities,TROPHY STORE,Neighbourhoods,102.89,Civic Events,1819Q03_PC00013
Sandwell Metropolitan Borough Council,http://www.sandwell.gov.uk/info/200202/performance_and_spending/3233/government_procurement_cards,04-Oct-2018,Adult Social Care Health and Wellbeing - Total,Amazon.co.uk,Total Adult Social Care,124.35,Ind. Emp Exp-Emp. Welfare,1819Q03_PC00014
Sandwell Metropolitan Borough Council,http://www.sandwell.gov.uk/info/200202/performance_and_spending/3233/government_procurement_cards,05-Oct-2018,Adult Social Care Health and Wellbeing - Total,AMZN Mktp UK,Total Adult Social Care,8.32,Printing Stationery&Gen Office,1819Q03_PC00015
Sandwell Metropolitan Borough Council,http://www.sandwell.gov.uk/info/200202/performance_and_spending/3233/government_procurement_cards,05-Oct-2018,Childrens Services,HOME BARGAINS,Childrens Services,3.3,Materials & Consumables,1819Q03_PC00016
Sandwell Metropolitan Borough Council,http://www.sandwell.gov.uk/info/200202/performance_and_spending/3233/government_procurement_cards,05-Oct-2018,Regeneration & Growth,T J MORRIS LTD,Regeneration And The Economy,13.3,Materials & Consumables,1819Q03_PC00017
Sandwell Metropolitan Borough Council,http://www.sandwell.gov.uk/info/200202/performance_and_spending/3233/government_procurement_cards,05-Oct-2018,Resources (Inc SIU),IKEA LIMITED,Assistant Chief Executive (Excl SIU),151.67,Equipment & Furniture,1819Q03_PC00018
Sandwell Metropolitan Borough Council,http://www.sandwell.gov.uk/info/200202/performance_and_spending/3233/government_procurement_cards,05-Oct-2018,Childrens Services,TIMPSON LTD,Childrens Services,135,R& M - Building Maint&Imp.,1819Q03_PC00019
Sandwell Metropolitan Borough Council,http://www.sandwell.gov.uk/info/200202/performance_and_spending/3233/government_procurement_cards,05-Oct-2018,Total Housing Revenue Account,AMZN Mktp UK,Total Housing Revenue Account,19.97,Printing Stationery&Gen Office,1819Q03_PC00020
Sandwell Metropolitan Borough Council,http://www.sandwell.gov.uk/info/200202/performance_and_spending/3233/government_procurement_cards,05-Oct-2018,Regeneration & Growth,SEVERN TRENT WATER,Regeneration And The Economy,179.27,Water Services,1819Q03_PC00021
Sandwell Metropolitan Borough Council,http://www.sandwell.gov.uk/info/200202/performance_and_spending/3233/government_procurement_cards,05-Oct-2018,Resources (Inc SIU),Amazon.co.uk,Assistant Chief Executive (Excl SIU),29.96,ICT,1819Q03_PC00022
Sandwell Metropolitan Borough Council,http://www.sandwell.gov.uk/info/200202/performance_and_spending/3233/government_procurement_cards,05-Oct-2018,Regeneration & Growth,TIMPSON LTD,Regeneration And The Economy,11.25,R & M - Security,1819Q03_PC00023
Sandwell Metropolitan Borough Council,http://www.sandwell.gov.uk/info/200202/performance_and_spending/3233/government_procurement_cards,05-Oct-2018,Resources (Inc SIU),AMZN Mktp UK,Assistant Chief Executive (Excl SIU),5.24,ICT,1819Q03_PC00024
Sandwell Metropolitan Borough Council,http://www.sandwell.gov.uk/info/200202/performance_and_spending/3233/government_procurement_cards,05-Oct-2018,Resources (Inc SIU),AMZN MKTP UK AMAZON.CO,Assistant Chief Executive (Excl SIU),41.67,Protective Clothing&Uniforms,1819Q03_PC00025
Sandwell Metropolitan Borough Council,http://www.sandwell.gov.uk/info/200202/performance_and_spending/3233/government_procurement_cards,05-Oct-2018,Housing & Communities,AMZN Mktp UK,Neighbourhoods,71.86,ICT,1819Q03_PC00026
Sandwell Metropolitan Borough Council,http://www.sandwell.gov.uk/info/200202/performance_and_spending/3233/government_procurement_cards,05-Oct-2018,Individual School Budgets With Inclusion,ARGOS OLDBURY,Individual School Budgets With Inclusion,-79.99,Equipment & Furniture,1819Q03_PC00027
Sandwell Metropolitan Borough Council,http://www.sandwell.gov.uk/info/200202/performance_and_spending/3233/government_procurement_cards,05-Oct-2018,Housing & Communities,Amazon.co.uk,Neighbourhoods,5.4,Materials & Consumables,1819Q03_PC00028
Sandwell Metropolitan Borough Council,http://www.sandwell.gov.uk/info/200202/performance_and_spending/3233/government_procurement_cards,05-Oct-2018,Regeneration & Growth,Trainline,Regeneration And The Economy,40.13,Public Transport,1819Q03_PC00029
Sandwell Metropolitan Borough Council,http://www.sandwell.gov.uk/info/200202/performance_and_spending/3233/government_procurement_cards,05-Oct-2018,Adult Social Care Health and Wellbeing - Total,THE INTELLECTUAL PROPE,Total Adult Social Care,170,Subscriptions,1819Q03_PC00030
Sandwell Metropolitan Borough Council,http://www.sandwell.gov.uk/info/200202/performance_and_spending/3233/government_procurement_cards,05-Oct-2018,Total Housing Revenue Account,AMZN Mktp UK,Total Housing Revenue Account,13.48,Materials & Consumables,1819Q03_PC00031
Sandwell Metropolitan Borough Council,http://www.sandwell.gov.uk/info/200202/performance_and_spending/3233/government_procurement_cards,05-Oct-2018,Housing & Communities,HIGHFIELD HOUSE HO,Neighbourhoods,375,Rents,1819Q03_PC00032
Sandwell Metropolitan Borough Council,http://www.sandwell.gov.uk/info/200202/performance_and_spending/3233/government_procurement_cards,05-Oct-2018,Housing & Communities,HIGHFIELD HOUSE HO,Neighbourhoods,624.17,Rents,1819Q03_PC00033
Sandwell Metropolitan Borough Council,http://www.sandwell.gov.uk/info/200202/performance_and_spending/3233/government_procurement_cards,05-Oct-2018,Resources (Inc SIU),EB  ANTI SLAVERY DAY C,Assistant Chief Executive (Excl SIU),32.93,Ind. Emp Exp-Staff Dev&Training,1819Q03_PC00034
Sandwell Metropolitan Borough Council,http://www.sandwell.gov.uk/info/200202/performance_and_spending/3233/government_procurement_cards,08-Oct-2018,Housing & Communities,Amazon Prime,Neighbourhoods,-6.66,Subscriptions,1819Q03_PC00035
Sandwell Metropolitan Borough Council,http://www.sandwell.gov.uk/info/200202/performance_and_spending/3233/government_procurement_cards,08-Oct-2018,Housing & Communities,WWW.HMV.COM,Neighbourhoods,9.99,Civic Events,1819Q03_PC00036
Sandwell Metropolitan Borough Council,http://www.sandwell.gov.uk/info/200202/performance_and_spending/3233/government_procurement_cards,08-Oct-2018,Total Housing Revenue Account,WWW.SPCB.CO.UK,Total Housing Revenue Account,103.45,Grounds Maint&Improvements,1819Q03_PC00037
Sandwell Metropolitan Borough Council,http://www.sandwell.gov.uk/info/200202/performance_and_spending/3233/government_procurement_cards,08-Oct-2018,Total Housing Revenue Account,PROGREEN WEED CONTROL,Total Housing Revenue Account,51.17,Grounds Maint&Improvements,1819Q03_PC00038
Sandwell Metropolitan Borough Council,http://www.sandwell.gov.uk/info/200202/performance_and_spending/3233/government_procurement_cards,08-Oct-2018,Housing & Communities,Amazon Prime,Neighbourhoods,6.66,"Postages, Carriage & Courier Services",1819Q03_PC00039
Sandwell Metropolitan Borough Council,http://www.sandwell.gov.uk/info/200202/performance_and_spending/3233/government_procurement_cards,08-Oct-2018,Total Housing Revenue Account,AMZN Mktp UK,Total Housing Revenue Account,28.97,Printing Stationery&Gen Office,1819Q03_PC00040
Sandwell Metropolitan Borough Council,http://www.sandwell.gov.uk/info/200202/performance_and_spending/3233/government_procurement_cards,08-Oct-2018,Childrens Services,BAKER ROSS,Childrens Services,290.98,Printing Stationery&Gen Office,1819Q03_PC00041
Sandwell Metropolitan Borough Council,http://www.sandwell.gov.uk/info/200202/performance_and_spending/3233/government_procurement_cards,08-Oct-2018,Childrens Services,B & Q KID254,Childrens Services,27.08,R& M - Building Maint&Imp.,1819Q03_PC00042
Sandwell Metropolitan Borough Council,http://www.sandwell.gov.uk/info/200202/performance_and_spending/3233/government_procurement_cards,08-Oct-2018,Resources (Inc SIU),AMZ Mosiso UK,Assistant Chief Executive (Excl SIU),-23.48,Printing Stationery&Gen Office,1819Q03_PC00043
Sandwell Metropolitan Borough Council,http://www.sandwell.gov.uk/info/200202/performance_and_spending/3233/government_procurement_cards,08-Oct-2018,Individual School Budgets With Inclusion,RUGLEY LEISURE CENTRE,Individual School Budgets With Inclusion,192,Professional Services External,1819Q03_PC00044
Sandwell Metropolitan Borough Council,http://www.sandwell.gov.uk/info/200202/performance_and_spending/3233/government_procurement_cards,08-Oct-2018,Total Housing Revenue Account,Amazon.co.uk,Total Housing Revenue Account,95.4,Equipment & Furniture,1819Q03_PC00045
Sandwell Metropolitan Borough Council,http://www.sandwell.gov.uk/info/200202/performance_and_spending/3233/government_procurement_cards,08-Oct-2018,Childrens Services,AMZN Mktp UK,Childrens Services,13.44,Printing Stationery&Gen Office,1819Q03_PC00046
Sandwell Metropolitan Borough Council,http://www.sandwell.gov.uk/info/200202/performance_and_spending/3233/government_procurement_cards,08-Oct-2018,Individual School Budgets With Inclusion,W'HAMPTON SWIMMING&FIT,Individual School Budgets With Inclusion,191.5,Professional Services External,1819Q03_PC00047
Sandwell Metropolitan Borough Council,http://www.sandwell.gov.uk/info/200202/performance_and_spending/3233/government_procurement_cards,08-Oct-2018,Individual School Budgets With Inclusion,W'HAMPTON SWIMMING&FIT,Individual School Budgets With Inclusion,232.3,Professional Services External,1819Q03_PC00048
Sandwell Metropolitan Borough Council,http://www.sandwell.gov.uk/info/200202/performance_and_spending/3233/government_procurement_cards,08-Oct-2018,Regeneration & Growth,Virgin Trains,Regeneration And The Economy,145.7,Public Transport,1819Q03_PC00049
Sandwell Metropolitan Borough Council,http://www.sandwell.gov.uk/info/200202/performance_and_spending/3233/government_procurement_cards,08-Oct-2018,Housing & Communities,PP MR MARQUEE,Neighbourhoods,800,Equipment & Furniture,1819Q03_PC00050
Sandwell Metropolitan Borough Council,http://www.sandwell.gov.uk/info/200202/performance_and_spending/3233/government_procurement_cards,08-Oct-2018,Childrens Services,WWW.CGPBOOKS.CO.UK,Childrens Services,212.5,Printing Stationery&Gen Office,1819Q03_PC00051
Sandwell Metropolitan Borough Council,http://www.sandwell.gov.uk/info/200202/performance_and_spending/3233/government_procurement_cards,08-Oct-2018,Individual School Budgets With Inclusion,MYTIME PAVILION,Individual School Budgets With Inclusion,250,Professional Services External,1819Q03_PC00052
Sandwell Metropolitan Borough Council,http://www.sandwell.gov.uk/info/200202/performance_and_spending/3233/government_procurement_cards,08-Oct-2018,Individual School Budgets With Inclusion,MYTIME PAVILION,Individual School Budgets With Inclusion,19,Professional Services External,1819Q03_PC00053
Sandwell Metropolitan Borough Council,http://www.sandwell.gov.uk/info/200202/performance_and_spending/3233/government_procurement_cards,08-Oct-2018,Childrens Services,WIGLEY DIY LTD,Childrens Services,34.86,R& M - Building Maint&Imp.,1819Q03_PC00054
Sandwell Metropolitan Borough Council,http://www.sandwell.gov.uk/info/200202/performance_and_spending/3233/government_procurement_cards,08-Oct-2018,Resources (Inc SIU),AMZN Mktp UK,Assistant Chief Executive (Excl SIU),19.47,Printing Stationery&Gen Office,1819Q03_PC00055
Sandwell Metropolitan Borough Council,http://www.sandwell.gov.uk/info/200202/performance_and_spending/3233/government_procurement_cards,08-Oct-2018,Corporate Management,SAINSBURYS 0558,Corporate Management,15,Civic Events,1819Q03_PC00056
Sandwell Metropolitan Borough Council,http://www.sandwell.gov.uk/info/200202/performance_and_spending/3233/government_procurement_cards,08-Oct-2018,Resources (Inc SIU),AMZN Mktp UK,Assistant Chief Executive (Excl SIU),19.63,ICT,1819Q03_PC00057
Sandwell Metropolitan Borough Council,http://www.sandwell.gov.uk/info/200202/performance_and_spending/3233/government_procurement_cards,08-Oct-2018,Total Housing Revenue Account,AMZN Mktp UK,Total Housing Revenue Account,108.36,Printing Stationery&Gen Office,1819Q03_PC00058
Sandwell Metropolitan Borough Council,http://www.sandwell.gov.uk/info/200202/performance_and_spending/3233/government_procurement_cards,09-Oct-2018,Adult Social Care Health and Wellbeing - Total,SAINSBURYS 0558,Total Adult Social Care,34.21,Catering Provisions,1819Q03_PC00059
Sandwell Metropolitan Borough Council,http://www.sandwell.gov.uk/info/200202/performance_and_spending/3233/government_procurement_cards,09-Oct-2018,Housing & Communities,SCREWFIX DIRECT,Neighbourhoods,45.04,R& M - Building Maint&Imp.,1819Q03_PC00060
Sandwell Metropolitan Borough Council,http://www.sandwell.gov.uk/info/200202/performance_and_spending/3233/government_procurement_cards,09-Oct-2018,Childrens Services,HOBBYCRAFT,Childrens Services,10.83,Printing Stationery&Gen Office,1819Q03_PC00061
Sandwell Metropolitan Borough Council,http://www.sandwell.gov.uk/info/200202/performance_and_spending/3233/government_procurement_cards,09-Oct-2018,Regeneration & Growth,SMARTCARD,Regeneration And The Economy,152.95,Materials & Consumables,1819Q03_PC00062
Sandwell Metropolitan Borough Council,http://www.sandwell.gov.uk/info/200202/performance_and_spending/3233/government_procurement_cards,09-Oct-2018,Housing & Communities,AQUAID FRANCHISING LTD,Neighbourhoods,107.5,Catering Provisions,1819Q03_PC00063
Sandwell Metropolitan Borough Council,http://www.sandwell.gov.uk/info/200202/performance_and_spending/3233/government_procurement_cards,09-Oct-2018,Adult Social Care Health and Wellbeing - Total,R & D MILLER LIMITED,Total Adult Social Care,580,Protective Clothing&Uniforms,1819Q03_PC00064
Sandwell Metropolitan Borough Council,http://www.sandwell.gov.uk/info/200202/performance_and_spending/3233/government_procurement_cards,09-Oct-2018,Housing & Communities,Trainline,Neighbourhoods,68.16,Public Transport,1819Q03_PC00065
Sandwell Metropolitan Borough Council,http://www.sandwell.gov.uk/info/200202/performance_and_spending/3233/government_procurement_cards,09-Oct-2018,Resources (Inc SIU),CARTRIDGE SAVE,Assistant Chief Executive (Excl SIU),78.3,Printing Stationery&Gen Office,1819Q03_PC00066
Sandwell Metropolitan Borough Council,http://www.sandwell.gov.uk/info/200202/performance_and_spending/3233/government_procurement_cards,09-Oct-2018,Housing & Communities,HIGHFIELD HOUSE HO,Neighbourhoods,233.33,Operational Services,1819Q03_PC00067
Sandwell Metropolitan Borough Council,http://www.sandwell.gov.uk/info/200202/performance_and_spending/3233/government_procurement_cards,09-Oct-2018,Housing & Communities,HIGHFIELD HOUSE HO,Neighbourhoods,157.5,Operational Services,1819Q03_PC00068
Sandwell Metropolitan Borough Council,http://www.sandwell.gov.uk/info/200202/performance_and_spending/3233/government_procurement_cards,09-Oct-2018,Childrens Services,THE RANGE,Childrens Services,8.31,Materials & Consumables,1819Q03_PC00069
Sandwell Metropolitan Borough Council,http://www.sandwell.gov.uk/info/200202/performance_and_spending/3233/government_procurement_cards,09-Oct-2018,Adult Social Care Health and Wellbeing - Total,SAINSBURYS 0558,Total Adult Social Care,16.75,Catering Provisions,1819Q03_PC00070
Sandwell Metropolitan Borough Council,http://www.sandwell.gov.uk/info/200202/performance_and_spending/3233/government_procurement_cards,09-Oct-2018,Adult Social Care Health and Wellbeing - Total,SAINSBURYS 0558,Total Adult Social Care,16,Catering Equipment,1819Q03_PC00071
Sandwell Metropolitan Borough Council,http://www.sandwell.gov.uk/info/200202/performance_and_spending/3233/government_procurement_cards,09-Oct-2018,Resources (Inc SIU),Trainline,Assistant Chief Executive (Excl SIU),21.89,Public Transport,1819Q03_PC00072
Sandwell Metropolitan Borough Council,http://www.sandwell.gov.uk/info/200202/performance_and_spending/3233/government_procurement_cards,09-Oct-2018,Childrens Services,Trainline,Childrens Services,69.6,Public Transport,1819Q03_PC00073
Sandwell Metropolitan Borough Council,http://www.sandwell.gov.uk/info/200202/performance_and_spending/3233/government_procurement_cards,09-Oct-2018,Childrens Services,CAREER DEVELOPMENT INS,Childrens Services,160,Subscriptions,1819Q03_PC00074
Sandwell Metropolitan Borough Council,http://www.sandwell.gov.uk/info/200202/performance_and_spending/3233/government_procurement_cards,09-Oct-2018,Resources (Inc SIU),Trainline,Assistant Chief Executive (Excl SIU),47.5,Public Transport,1819Q03_PC00075
Sandwell Metropolitan Borough Council,http://www.sandwell.gov.uk/info/200202/performance_and_spending/3233/government_procurement_cards,09-Oct-2018,Adult Social Care Health and Wellbeing - Total,ARGOS OLDBURY,Total Adult Social Care,13.32,Employee Expenses,1819Q03_PC00076
Sandwell Metropolitan Borough Council,http://www.sandwell.gov.uk/info/200202/performance_and_spending/3233/government_procurement_cards,09-Oct-2018,Adult Social Care Health and Wellbeing - Total,SAINSBURYS SACAT0558,Total Adult Social Care,20.83,Ind. Emp Exp-Emp. Welfare,1819Q03_PC00077
Sandwell Metropolitan Borough Council,http://www.sandwell.gov.uk/info/200202/performance_and_spending/3233/government_procurement_cards,09-Oct-2018,Adult Social Care Health and Wellbeing - Total,ARGOS RETAIL GROUP,Total Adult Social Care,26.65,Employee Expenses,1819Q03_PC00078
Sandwell Metropolitan Borough Council,http://www.sandwell.gov.uk/info/200202/performance_and_spending/3233/government_procurement_cards,10-Oct-2018,Total Housing Revenue Account,PAYPAL  BOBOFUNNCOL,Total Housing Revenue Account,36,Materials & Consumables,1819Q03_PC00079
Sandwell Metropolitan Borough Council,http://www.sandwell.gov.uk/info/200202/performance_and_spending/3233/government_procurement_cards,10-Oct-2018,Total Housing Revenue Account,Amazon.co.uk,Total Housing Revenue Account,54.47,Equipment & Furniture,1819Q03_PC00080
Sandwell Metropolitan Borough Council,http://www.sandwell.gov.uk/info/200202/performance_and_spending/3233/government_procurement_cards,10-Oct-2018,Housing & Communities,SCREWFIX DIRECT,Neighbourhoods,119.87,Fixtures & Fittings,1819Q03_PC00081
Sandwell Metropolitan Borough Council,http://www.sandwell.gov.uk/info/200202/performance_and_spending/3233/government_procurement_cards,10-Oct-2018,Resources (Inc SIU),ASDA SUPERSTORE,Assistant Chief Executive (Excl SIU),28.33,Equipment & Furniture,1819Q03_PC00082
Sandwell Metropolitan Borough Council,http://www.sandwell.gov.uk/info/200202/performance_and_spending/3233/government_procurement_cards,10-Oct-2018,Resources (Inc SIU),PAYPAL  DIGIKARTLIM,Assistant Chief Executive (Excl SIU),1.96,Equipment & Furniture,1819Q03_PC00083
Sandwell Metropolitan Borough Council,http://www.sandwell.gov.uk/info/200202/performance_and_spending/3233/government_procurement_cards,10-Oct-2018,Childrens Services,BOOKWHEN.COM - BOOKING,Childrens Services,190,Ind. Emp Exp-Staff Dev&Training,1819Q03_PC00084
Sandwell Metropolitan Borough Council,http://www.sandwell.gov.uk/info/200202/performance_and_spending/3233/government_procurement_cards,10-Oct-2018,Housing & Communities,HIGHFIELD HOUSE HO,Neighbourhoods,150,Operational Services,1819Q03_PC00085
Sandwell Metropolitan Borough Council,http://www.sandwell.gov.uk/info/200202/performance_and_spending/3233/government_procurement_cards,10-Oct-2018,Resources (Inc SIU),Virgin Trains,Assistant Chief Executive (Excl SIU),77.92,Public Transport,1819Q03_PC00086
Sandwell Metropolitan Borough Council,http://www.sandwell.gov.uk/info/200202/performance_and_spending/3233/government_procurement_cards,10-Oct-2018,Adult Social Care Health and Wellbeing - Total,PARK INN BIRMINGHAM WE,Total Adult Social Care,108.33,Conference Expenses,1819Q03_PC00087
Sandwell Metropolitan Borough Council,http://www.sandwell.gov.uk/info/200202/performance_and_spending/3233/government_procurement_cards,10-Oct-2018,Resources (Inc SIU),Virgin Trains,Assistant Chief Executive (Excl SIU),73.75,Public Transport,1819Q03_PC00088
Sandwell Metropolitan Borough Council,http://www.sandwell.gov.uk/info/200202/performance_and_spending/3233/government_procurement_cards,10-Oct-2018,Resources (Inc SIU),"AMZ Smart Parts UK, Di",Assistant Chief Executive (Excl SIU),-25.81,ICT,1819Q03_PC00089
Sandwell Metropolitan Borough Council,http://www.sandwell.gov.uk/info/200202/performance_and_spending/3233/government_procurement_cards,10-Oct-2018,Housing & Communities,AMZN Mktp UK,Neighbourhoods,8.22,Materials & Consumables,1819Q03_PC00090
Sandwell Metropolitan Borough Council,http://www.sandwell.gov.uk/info/200202/performance_and_spending/3233/government_procurement_cards,10-Oct-2018,Total Housing Revenue Account,Amazon.co.uk,Total Housing Revenue Account,54.48,Equipment & Furniture,1819Q03_PC00091
Sandwell Metropolitan Borough Council,http://www.sandwell.gov.uk/info/200202/performance_and_spending/3233/government_procurement_cards,10-Oct-2018,Childrens Services,Trainline,Childrens Services,63.5,Public Transport,1819Q03_PC00092
Sandwell Metropolitan Borough Council,http://www.sandwell.gov.uk/info/200202/performance_and_spending/3233/government_procurement_cards,10-Oct-2018,Resources (Inc SIU),AMZN Mktp UK,Assistant Chief Executive (Excl SIU),25.35,Printing Stationery&Gen Office,1819Q03_PC00093
Sandwell Metropolitan Borough Council,http://www.sandwell.gov.uk/info/200202/performance_and_spending/3233/government_procurement_cards,10-Oct-2018,Resources (Inc SIU),Trainline,Assistant Chief Executive (Excl SIU),21.89,Public Transport,1819Q03_PC00094
Sandwell Metropolitan Borough Council,http://www.sandwell.gov.uk/info/200202/performance_and_spending/3233/government_procurement_cards,10-Oct-2018,Total Housing Revenue Account,BILL@TRAVEL.CLOUD,Total Housing Revenue Account,25.4,Public Transport,1819Q03_PC00095
Sandwell Metropolitan Borough Council,http://www.sandwell.gov.uk/info/200202/performance_and_spending/3233/government_procurement_cards,10-Oct-2018,Total Housing Revenue Account,BILL@TRAVEL.CLOUD,Total Housing Revenue Account,329,Public Transport,1819Q03_PC00096
Sandwell Metropolitan Borough Council,http://www.sandwell.gov.uk/info/200202/performance_and_spending/3233/government_procurement_cards,10-Oct-2018,Housing & Communities,Trainline,Neighbourhoods,47.85,Public Transport,1819Q03_PC00097
Sandwell Metropolitan Borough Council,http://www.sandwell.gov.uk/info/200202/performance_and_spending/3233/government_procurement_cards,10-Oct-2018,Housing & Communities,Amazon.co.uk,Neighbourhoods,5.99,Materials & Consumables,1819Q03_PC00098
Sandwell Metropolitan Borough Council,http://www.sandwell.gov.uk/info/200202/performance_and_spending/3233/government_procurement_cards,11-Oct-2018,Housing & Communities,SANDWELL & DUD T/O,Neighbourhoods,3.25,Public Transport,1819Q03_PC00099
Sandwell Metropolitan Borough Council,http://www.sandwell.gov.uk/info/200202/performance_and_spending/3233/government_procurement_cards,11-Oct-2018,Childrens Services,WWW.MARINESUPERSTORE.C,Childrens Services,99.96,Protective Clothing&Uniforms,1819Q03_PC00100
Sandwell Metropolitan Borough Council,http://www.sandwell.gov.uk/info/200202/performance_and_spending/3233/government_procurement_cards,11-Oct-2018,Total Housing Revenue Account,AMZN MKTP UK AMAZON.CO,Total Housing Revenue Account,16.32,Telephones,1819Q03_PC00101
Sandwell Metropolitan Borough Council,http://www.sandwell.gov.uk/info/200202/performance_and_spending/3233/government_procurement_cards,11-Oct-2018,Housing & Communities,SCREWFIX DIRECT,Neighbourhoods,24.99,R& M - Building Maint&Imp.,1819Q03_PC00102
Sandwell Metropolitan Borough Council,http://www.sandwell.gov.uk/info/200202/performance_and_spending/3233/government_procurement_cards,11-Oct-2018,Total Housing Revenue Account,AMZN MKTP UK AMAZON.CO,Total Housing Revenue Account,34.94,Telephones,1819Q03_PC00103
Sandwell Metropolitan Borough Council,http://www.sandwell.gov.uk/info/200202/performance_and_spending/3233/government_procurement_cards,11-Oct-2018,Housing & Communities,SCREWFIX WEST BROMWICH,Neighbourhoods,12.49,R& M - Building Maint&Imp.,1819Q03_PC00104
Sandwell Metropolitan Borough Council,http://www.sandwell.gov.uk/info/200202/performance_and_spending/3233/government_procurement_cards,11-Oct-2018,Housing & Communities,SUK RETAIL LTD,Neighbourhoods,31.61,Printing Stationery&Gen Office,1819Q03_PC00105
Sandwell Metropolitan Borough Council,http://www.sandwell.gov.uk/info/200202/performance_and_spending/3233/government_procurement_cards,11-Oct-2018,Adult Social Care Health and Wellbeing - Total,SUK RETAIL LTD,Total Adult Social Care,22.49,Equipment & Furniture,1819Q03_PC00106
Sandwell Metropolitan Borough Council,http://www.sandwell.gov.uk/info/200202/performance_and_spending/3233/government_procurement_cards,11-Oct-2018,Adult Social Care Health and Wellbeing - Total,AMZN Mktp UK,Total Adult Social Care,84.63,Equipment & Furniture,1819Q03_PC00107
Sandwell Metropolitan Borough Council,http://www.sandwell.gov.uk/info/200202/performance_and_spending/3233/government_procurement_cards,11-Oct-2018,Adult Social Care Health and Wellbeing - Total,AMZN Mktp UK,Total Adult Social Care,3.74,Equipment & Furniture,1819Q03_PC00108
Sandwell Metropolitan Borough Council,http://www.sandwell.gov.uk/info/200202/performance_and_spending/3233/government_procurement_cards,11-Oct-2018,Housing & Communities,EDGBASTON PALACE,Neighbourhoods,416.67,Operational Services,1819Q03_PC00109
Sandwell Metropolitan Borough Council,http://www.sandwell.gov.uk/info/200202/performance_and_spending/3233/government_procurement_cards,11-Oct-2018,Total Housing Revenue Account,AMZN MKTP UK AMAZON.CO,Total Housing Revenue Account,33.32,Telephones,1819Q03_PC00110
Sandwell Metropolitan Borough Council,http://www.sandwell.gov.uk/info/200202/performance_and_spending/3233/government_procurement_cards,11-Oct-2018,Total Housing Revenue Account,Amazon.co.uk,Total Housing Revenue Account,70.82,Materials & Consumables,1819Q03_PC00111
Sandwell Metropolitan Borough Council,http://www.sandwell.gov.uk/info/200202/performance_and_spending/3233/government_procurement_cards,11-Oct-2018,Regeneration & Growth,Amazon.co.uk,Regeneration And The Economy,54.16,Materials & Consumables,1819Q03_PC00112
Sandwell Metropolitan Borough Council,http://www.sandwell.gov.uk/info/200202/performance_and_spending/3233/government_procurement_cards,11-Oct-2018,Regeneration & Growth,Amazon.co.uk,Regeneration And The Economy,54.16,Materials & Consumables,1819Q03_PC00113
Sandwell Metropolitan Borough Council,http://www.sandwell.gov.uk/info/200202/performance_and_spending/3233/government_procurement_cards,11-Oct-2018,Housing & Communities,Amazon.co.uk,Neighbourhoods,22.74,Materials & Consumables,1819Q03_PC00114
Sandwell Metropolitan Borough Council,http://www.sandwell.gov.uk/info/200202/performance_and_spending/3233/government_procurement_cards,11-Oct-2018,Individual School Budgets With Inclusion,Trainline,Individual School Budgets With Inclusion,42.67,Public Transport,1819Q03_PC00115
Sandwell Metropolitan Borough Council,http://www.sandwell.gov.uk/info/200202/performance_and_spending/3233/government_procurement_cards,11-Oct-2018,Housing & Communities,Amazon.co.uk,Neighbourhoods,23,Materials & Consumables,1819Q03_PC00116
Sandwell Metropolitan Borough Council,http://www.sandwell.gov.uk/info/200202/performance_and_spending/3233/government_procurement_cards,11-Oct-2018,Housing & Communities,Amazon.co.uk,Neighbourhoods,9.3,Materials & Consumables,1819Q03_PC00117
Sandwell Metropolitan Borough Council,http://www.sandwell.gov.uk/info/200202/performance_and_spending/3233/government_procurement_cards,11-Oct-2018,Resources (Inc SIU),Cross Country Trains,Assistant Chief Executive (Excl SIU),113.8,Public Transport,1819Q03_PC00118
Sandwell Metropolitan Borough Council,http://www.sandwell.gov.uk/info/200202/performance_and_spending/3233/government_procurement_cards,11-Oct-2018,Adult Social Care Health and Wellbeing - Total,Trainline,Total Adult Social Care,342.8,Public Transport,1819Q03_PC00119
Sandwell Metropolitan Borough Council,http://www.sandwell.gov.uk/info/200202/performance_and_spending/3233/government_procurement_cards,11-Oct-2018,Housing & Communities,WM MORRISONS STORE,Neighbourhoods,55.35,Catering Provisions,1819Q03_PC00120
Sandwell Metropolitan Borough Council,http://www.sandwell.gov.uk/info/200202/performance_and_spending/3233/government_procurement_cards,12-Oct-2018,Adult Social Care Health and Wellbeing - Total,PREMIER INN,Total Adult Social Care,59.58,Conference Expenses,1819Q03_PC00121
Sandwell Metropolitan Borough Council,http://www.sandwell.gov.uk/info/200202/performance_and_spending/3233/government_procurement_cards,12-Oct-2018,Resources (Inc SIU),DRI Lenovo,Assistant Chief Executive (Excl SIU),45,ICT,1819Q03_PC00122
Sandwell Metropolitan Borough Council,http://www.sandwell.gov.uk/info/200202/performance_and_spending/3233/government_procurement_cards,12-Oct-2018,Resources (Inc SIU),PAYPAL  ANGELAMEYER,Assistant Chief Executive (Excl SIU),16.67,Protective Clothing&Uniforms,1819Q03_PC00123
Sandwell Metropolitan Borough Council,http://www.sandwell.gov.uk/info/200202/performance_and_spending/3233/government_procurement_cards,12-Oct-2018,Total Housing Revenue Account,AMZ PMC Telecom,Total Housing Revenue Account,-8.73,Equipment & Furniture,1819Q03_PC00124
Sandwell Metropolitan Borough Council,http://www.sandwell.gov.uk/info/200202/performance_and_spending/3233/government_procurement_cards,12-Oct-2018,Total Housing Revenue Account,AMZN MKTP UK AMAZON.CO,Total Housing Revenue Account,-33.32,Telephones,1819Q03_PC00125
Sandwell Metropolitan Borough Council,http://www.sandwell.gov.uk/info/200202/performance_and_spending/3233/government_procurement_cards,12-Oct-2018,Housing & Communities,BOURNVILLE GARDEN,Neighbourhoods,31.67,Materials & Consumables,1819Q03_PC00126
Sandwell Metropolitan Borough Council,http://www.sandwell.gov.uk/info/200202/performance_and_spending/3233/government_procurement_cards,12-Oct-2018,Housing & Communities,AMZN MKTP UK AMAZON.CO,Neighbourhoods,3.58,Equipment & Furniture,1819Q03_PC00127
Sandwell Metropolitan Borough Council,http://www.sandwell.gov.uk/info/200202/performance_and_spending/3233/government_procurement_cards,12-Oct-2018,Adult Social Care Health and Wellbeing - Total,Trainline,Total Adult Social Care,68.75,Public Transport,1819Q03_PC00128
Sandwell Metropolitan Borough Council,http://www.sandwell.gov.uk/info/200202/performance_and_spending/3233/government_procurement_cards,12-Oct-2018,Housing & Communities,TOOLSTATION LTD,Neighbourhoods,105.31,Equipment & Furniture,1819Q03_PC00129
Sandwell Metropolitan Borough Council,http://www.sandwell.gov.uk/info/200202/performance_and_spending/3233/government_procurement_cards,12-Oct-2018,Housing & Communities,AMZN MKTP UK AMAZON.CO,Neighbourhoods,35.39,Equipment & Furniture,1819Q03_PC00130
Sandwell Metropolitan Borough Council,http://www.sandwell.gov.uk/info/200202/performance_and_spending/3233/government_procurement_cards,12-Oct-2018,Housing & Communities,AMZN MKTP UK AMAZON.CO,Neighbourhoods,36.7,Equipment & Furniture,1819Q03_PC00131
Sandwell Metropolitan Borough Council,http://www.sandwell.gov.uk/info/200202/performance_and_spending/3233/government_procurement_cards,12-Oct-2018,Housing & Communities,AMZN MKTP UK AMAZON.CO,Neighbourhoods,14.83,Equipment & Furniture,1819Q03_PC00132
Sandwell Metropolitan Borough Council,http://www.sandwell.gov.uk/info/200202/performance_and_spending/3233/government_procurement_cards,12-Oct-2018,Housing & Communities,HIGHFIELD HOUSE HO,Neighbourhoods,375,Operational Services,1819Q03_PC00133
Sandwell Metropolitan Borough Council,http://www.sandwell.gov.uk/info/200202/performance_and_spending/3233/government_procurement_cards,12-Oct-2018,Housing & Communities,HIGHFIELD HOUSE HO,Neighbourhoods,445.83,Operational Services,1819Q03_PC00134
Sandwell Metropolitan Borough Council,http://www.sandwell.gov.uk/info/200202/performance_and_spending/3233/government_procurement_cards,12-Oct-2018,Resources (Inc SIU),WEST MIDLANDS METRO,Assistant Chief Executive (Excl SIU),8.5,Public Transport,1819Q03_PC00135
Sandwell Metropolitan Borough Council,http://www.sandwell.gov.uk/info/200202/performance_and_spending/3233/government_procurement_cards,12-Oct-2018,Regeneration & Growth,WEST MIDLANDS METRO,Regeneration And The Economy,5.5,Public Transport,1819Q03_PC00136
Sandwell Metropolitan Borough Council,http://www.sandwell.gov.uk/info/200202/performance_and_spending/3233/government_procurement_cards,12-Oct-2018,Childrens Services,THE POST OFFICE,Childrens Services,4.21,"Postages, Carriage & Courier Services",1819Q03_PC00137
Sandwell Metropolitan Borough Council,http://www.sandwell.gov.uk/info/200202/performance_and_spending/3233/government_procurement_cards,12-Oct-2018,Regeneration & Growth,Trainline,Regeneration And The Economy,81.08,Public Transport,1819Q03_PC00138
Sandwell Metropolitan Borough Council,http://www.sandwell.gov.uk/info/200202/performance_and_spending/3233/government_procurement_cards,12-Oct-2018,Childrens Services,THE POST OFFICE,Childrens Services,6.5,"Postages, Carriage & Courier Services",1819Q03_PC00139
Sandwell Metropolitan Borough Council,http://www.sandwell.gov.uk/info/200202/performance_and_spending/3233/government_procurement_cards,12-Oct-2018,Adult Social Care Health and Wellbeing - Total,Trainline,Total Adult Social Care,1.5,Public Transport,1819Q03_PC00140
Sandwell Metropolitan Borough Council,http://www.sandwell.gov.uk/info/200202/performance_and_spending/3233/government_procurement_cards,12-Oct-2018,Childrens Services,PAYPAL  CRIMSONPUBL,Childrens Services,27.49,Materials & Consumables,1819Q03_PC00141
Sandwell Metropolitan Borough Council,http://www.sandwell.gov.uk/info/200202/performance_and_spending/3233/government_procurement_cards,12-Oct-2018,Resources (Inc SIU),Virgin Trains,Assistant Chief Executive (Excl SIU),44.55,Public Transport,1819Q03_PC00142
Sandwell Metropolitan Borough Council,http://www.sandwell.gov.uk/info/200202/performance_and_spending/3233/government_procurement_cards,12-Oct-2018,Resources (Inc SIU),AMZN MKTP UK AMAZON.CO,Assistant Chief Executive (Excl SIU),17.49,Printing Stationery&Gen Office,1819Q03_PC00143
Sandwell Metropolitan Borough Council,http://www.sandwell.gov.uk/info/200202/performance_and_spending/3233/government_procurement_cards,12-Oct-2018,Housing & Communities,WWW.POPPYLOTTERY.SAFEA,Neighbourhoods,300,Civic Events,1819Q03_PC00144
Sandwell Metropolitan Borough Council,http://www.sandwell.gov.uk/info/200202/performance_and_spending/3233/government_procurement_cards,12-Oct-2018,Housing & Communities,WWW.POPPYLOTTERY.SAFEA,Neighbourhoods,300,Civic Events,1819Q03_PC00145
Sandwell Metropolitan Borough Council,http://www.sandwell.gov.uk/info/200202/performance_and_spending/3233/government_procurement_cards,12-Oct-2018,Housing & Communities,WWW.POPPYLOTTERY.SAFEA,Neighbourhoods,150,Civic Events,1819Q03_PC00146
Sandwell Metropolitan Borough Council,http://www.sandwell.gov.uk/info/200202/performance_and_spending/3233/government_procurement_cards,15-Oct-2018,Childrens Services,KAERCHER ECOMUK,Childrens Services,44.12,Equipment & Furniture,1819Q03_PC00147
Sandwell Metropolitan Borough Council,http://www.sandwell.gov.uk/info/200202/performance_and_spending/3233/government_procurement_cards,15-Oct-2018,Housing & Communities,Amazon.co.uk,Neighbourhoods,6.75,Printing Stationery&Gen Office,1819Q03_PC00148
Sandwell Metropolitan Borough Council,http://www.sandwell.gov.uk/info/200202/performance_and_spending/3233/government_procurement_cards,15-Oct-2018,Resources (Inc SIU),Virgin Trains,Assistant Chief Executive (Excl SIU),-25.42,Public Transport,1819Q03_PC00149
Sandwell Metropolitan Borough Council,http://www.sandwell.gov.uk/info/200202/performance_and_spending/3233/government_procurement_cards,15-Oct-2018,Resources (Inc SIU),Virgin Trains,Assistant Chief Executive (Excl SIU),-52.5,Public Transport,1819Q03_PC00150
Sandwell Metropolitan Borough Council,http://www.sandwell.gov.uk/info/200202/performance_and_spending/3233/government_procurement_cards,15-Oct-2018,Childrens Services,ALDI 109 772,Childrens Services,4.09,Materials & Consumables,1819Q03_PC00151
Sandwell Metropolitan Borough Council,http://www.sandwell.gov.uk/info/200202/performance_and_spending/3233/government_procurement_cards,15-Oct-2018,Housing & Communities,B & M RETAIL,Neighbourhoods,44.25,Materials & Consumables,1819Q03_PC00152
Sandwell Metropolitan Borough Council,http://www.sandwell.gov.uk/info/200202/performance_and_spending/3233/government_procurement_cards,15-Oct-2018,Adult Social Care Health and Wellbeing - Total,GOVERNMENT EVENTS,Total Adult Social Care,701.15,Conference Expenses,1819Q03_PC00153
Sandwell Metropolitan Borough Council,http://www.sandwell.gov.uk/info/200202/performance_and_spending/3233/government_procurement_cards,15-Oct-2018,Total Housing Revenue Account,AMZN Mktp UK,Total Housing Revenue Account,36.65,Materials & Consumables,1819Q03_PC00154
Sandwell Metropolitan Borough Council,http://www.sandwell.gov.uk/info/200202/performance_and_spending/3233/government_procurement_cards,15-Oct-2018,Housing & Communities,Hotel on Booking.com,Neighbourhoods,145.35,Operational Services,1819Q03_PC00155
Sandwell Metropolitan Borough Council,http://www.sandwell.gov.uk/info/200202/performance_and_spending/3233/government_procurement_cards,15-Oct-2018,Resources (Inc SIU),Trainline,Assistant Chief Executive (Excl SIU),142.75,Public Transport,1819Q03_PC00156
Sandwell Metropolitan Borough Council,http://www.sandwell.gov.uk/info/200202/performance_and_spending/3233/government_procurement_cards,15-Oct-2018,Childrens Services,ALDI 109 772,Childrens Services,2.16,Catering Provisions,1819Q03_PC00157
Sandwell Metropolitan Borough Council,http://www.sandwell.gov.uk/info/200202/performance_and_spending/3233/government_procurement_cards,15-Oct-2018,Childrens Services,ALDI 109 772,Childrens Services,45.87,Catering Provisions,1819Q03_PC00158
Sandwell Metropolitan Borough Council,http://www.sandwell.gov.uk/info/200202/performance_and_spending/3233/government_procurement_cards,15-Oct-2018,Adult Social Care Health and Wellbeing - Total,AMZN Mktp UK,Total Adult Social Care,18.2,ICT,1819Q03_PC00159
Sandwell Metropolitan Borough Council,http://www.sandwell.gov.uk/info/200202/performance_and_spending/3233/government_procurement_cards,15-Oct-2018,Adult Social Care Health and Wellbeing - Total,AMZN MKTP UK AMAZON.CO,Total Adult Social Care,18.2,ICT,1819Q03_PC00160
Sandwell Metropolitan Borough Council,http://www.sandwell.gov.uk/info/200202/performance_and_spending/3233/government_procurement_cards,15-Oct-2018,Housing & Communities,AMZN Mktp UK,Neighbourhoods,7.64,Materials & Consumables,1819Q03_PC00161
Sandwell Metropolitan Borough Council,http://www.sandwell.gov.uk/info/200202/performance_and_spending/3233/government_procurement_cards,15-Oct-2018,Housing & Communities,WM MORRISONS STORE,Neighbourhoods,25,Materials & Consumables,1819Q03_PC00162
Sandwell Metropolitan Borough Council,http://www.sandwell.gov.uk/info/200202/performance_and_spending/3233/government_procurement_cards,15-Oct-2018,Housing & Communities,WM MORRISONS STORE,Neighbourhoods,7.5,Materials & Consumables,1819Q03_PC00163
Sandwell Metropolitan Borough Council,http://www.sandwell.gov.uk/info/200202/performance_and_spending/3233/government_procurement_cards,15-Oct-2018,Resources (Inc SIU),CLARK BROOKES TURNER,Assistant Chief Executive (Excl SIU),250,Professional Services External,1819Q03_PC00164
Sandwell Metropolitan Borough Council,http://www.sandwell.gov.uk/info/200202/performance_and_spending/3233/government_procurement_cards,15-Oct-2018,Resources (Inc SIU),SPIRE LITTLE ASTON,Assistant Chief Executive (Excl SIU),432.5,Professional Services External,1819Q03_PC00165
Sandwell Metropolitan Borough Council,http://www.sandwell.gov.uk/info/200202/performance_and_spending/3233/government_procurement_cards,15-Oct-2018,Housing & Communities,AMZN Mktp UK,Neighbourhoods,6.62,Equipment & Furniture,1819Q03_PC00166
Sandwell Metropolitan Borough Council,http://www.sandwell.gov.uk/info/200202/performance_and_spending/3233/government_procurement_cards,15-Oct-2018,Housing & Communities,Amazon.co.uk,Neighbourhoods,2.99,Printing Stationery&Gen Office,1819Q03_PC00167
Sandwell Metropolitan Borough Council,http://www.sandwell.gov.uk/info/200202/performance_and_spending/3233/government_procurement_cards,15-Oct-2018,Housing & Communities,Amazon.co.uk,Neighbourhoods,74.99,Grounds Maint&Improvements,1819Q03_PC00168
Sandwell Metropolitan Borough Council,http://www.sandwell.gov.uk/info/200202/performance_and_spending/3233/government_procurement_cards,15-Oct-2018,Housing & Communities,Amazon Prime,Neighbourhoods,6.66,Equipment & Furniture,1819Q03_PC00169
Sandwell Metropolitan Borough Council,http://www.sandwell.gov.uk/info/200202/performance_and_spending/3233/government_procurement_cards,15-Oct-2018,Adult Social Care Health and Wellbeing - Total,Amazon.co.uk,Total Adult Social Care,18.13,ICT,1819Q03_PC00170
Sandwell Metropolitan Borough Council,http://www.sandwell.gov.uk/info/200202/performance_and_spending/3233/government_procurement_cards,15-Oct-2018,Total Housing Revenue Account,AMZN MKTP UK AMAZON.CO,Total Housing Revenue Account,99.83,Materials & Consumables,1819Q03_PC00171
Sandwell Metropolitan Borough Council,http://www.sandwell.gov.uk/info/200202/performance_and_spending/3233/government_procurement_cards,15-Oct-2018,Housing & Communities,Amazon.co.uk,Neighbourhoods,59.9,Materials & Consumables,1819Q03_PC00172
Sandwell Metropolitan Borough Council,http://www.sandwell.gov.uk/info/200202/performance_and_spending/3233/government_procurement_cards,16-Oct-2018,Adult Social Care Health and Wellbeing - Total,AMZ rhinocables,Total Adult Social Care,-3.74,Equipment & Furniture,1819Q03_PC00173
Sandwell Metropolitan Borough Council,http://www.sandwell.gov.uk/info/200202/performance_and_spending/3233/government_procurement_cards,16-Oct-2018,Childrens Services,WWW.BESTINTHECOUNTRY.C,Childrens Services,-429.79,Protective Clothing&Uniforms,1819Q03_PC00174
Sandwell Metropolitan Borough Council,http://www.sandwell.gov.uk/info/200202/performance_and_spending/3233/government_procurement_cards,16-Oct-2018,Total Housing Revenue Account,AMZN Mktp UK,Total Housing Revenue Account,112.37,Equipment & Furniture,1819Q03_PC00175
Sandwell Metropolitan Borough Council,http://www.sandwell.gov.uk/info/200202/performance_and_spending/3233/government_procurement_cards,16-Oct-2018,Housing & Communities,B & M RETAIL,Neighbourhoods,5.48,Materials & Consumables,1819Q03_PC00176
Sandwell Metropolitan Borough Council,http://www.sandwell.gov.uk/info/200202/performance_and_spending/3233/government_procurement_cards,16-Oct-2018,Housing & Communities,HIGHFIELD HOUSE HO,Neighbourhoods,157.5,Operational Services,1819Q03_PC00177
Sandwell Metropolitan Borough Council,http://www.sandwell.gov.uk/info/200202/performance_and_spending/3233/government_procurement_cards,16-Oct-2018,Housing & Communities,HIGHFIELD HOUSE HO,Neighbourhoods,233.33,Operational Services,1819Q03_PC00178
Sandwell Metropolitan Borough Council,http://www.sandwell.gov.uk/info/200202/performance_and_spending/3233/government_procurement_cards,16-Oct-2018,Housing & Communities,EDGBASTON PALACE,Neighbourhoods,729.17,Operational Services,1819Q03_PC00179
Sandwell Metropolitan Borough Council,http://www.sandwell.gov.uk/info/200202/performance_and_spending/3233/government_procurement_cards,16-Oct-2018,Childrens Services,Spotify P07DA6ED63,Childrens Services,8.32,Subscriptions,1819Q03_PC00180
Sandwell Metropolitan Borough Council,http://www.sandwell.gov.uk/info/200202/performance_and_spending/3233/government_procurement_cards,16-Oct-2018,Childrens Services,ASDA GROCERIES ONLINE,Childrens Services,121.52,Catering Provisions,1819Q03_PC00181
Sandwell Metropolitan Borough Council,http://www.sandwell.gov.uk/info/200202/performance_and_spending/3233/government_procurement_cards,16-Oct-2018,Regeneration & Growth,WWW.HOBBYCRAFT.CO.UK,Regeneration And The Economy,13,Equipment & Furniture,1819Q03_PC00182
Sandwell Metropolitan Borough Council,http://www.sandwell.gov.uk/info/200202/performance_and_spending/3233/government_procurement_cards,16-Oct-2018,Childrens Services,RELIANCE MEDICAL LTD,Childrens Services,20.55,Materials & Consumables,1819Q03_PC00183
Sandwell Metropolitan Borough Council,http://www.sandwell.gov.uk/info/200202/performance_and_spending/3233/government_procurement_cards,16-Oct-2018,Resources (Inc SIU),HMCOURTS-SERVICE.G,Assistant Chief Executive (Excl SIU),566.5,Council Tax,1819Q03_PC00184
Sandwell Metropolitan Borough Council,http://www.sandwell.gov.uk/info/200202/performance_and_spending/3233/government_procurement_cards,16-Oct-2018,Total Housing Revenue Account,THE POST OFFICE,Total Housing Revenue Account,220,Licences,1819Q03_PC00185
Sandwell Metropolitan Borough Council,http://www.sandwell.gov.uk/info/200202/performance_and_spending/3233/government_procurement_cards,16-Oct-2018,Resources (Inc SIU),PHOENIX SAFE COMPA,Strategic Investment Unit,22.8,R & M - Security,1819Q03_PC00186
Sandwell Metropolitan Borough Council,http://www.sandwell.gov.uk/info/200202/performance_and_spending/3233/government_procurement_cards,16-Oct-2018,Adult Social Care Health and Wellbeing - Total,BILL@TRAVEL.CLOUD,Total Adult Social Care,129.9,Public Transport,1819Q03_PC00187
Sandwell Metropolitan Borough Council,http://www.sandwell.gov.uk/info/200202/performance_and_spending/3233/government_procurement_cards,16-Oct-2018,Housing & Communities,Trainline,Neighbourhoods,-6.8,Public Transport,1819Q03_PC00188
Sandwell Metropolitan Borough Council,http://www.sandwell.gov.uk/info/200202/performance_and_spending/3233/government_procurement_cards,16-Oct-2018,Housing & Communities,Amazon.co.uk,Neighbourhoods,5.99,Materials & Consumables,1819Q03_PC00189
Sandwell Metropolitan Borough Council,http://www.sandwell.gov.uk/info/200202/performance_and_spending/3233/government_procurement_cards,17-Oct-2018,Regeneration & Growth,TVLICENSING.CO.UK,Regeneration And The Economy,150.5,Licences,1819Q03_PC00190
Sandwell Metropolitan Borough Council,http://www.sandwell.gov.uk/info/200202/performance_and_spending/3233/government_procurement_cards,17-Oct-2018,Housing & Communities,Amazon Prime,Neighbourhoods,-6.66,Equipment & Furniture,1819Q03_PC00191
Sandwell Metropolitan Borough Council,http://www.sandwell.gov.uk/info/200202/performance_and_spending/3233/government_procurement_cards,17-Oct-2018,Resources (Inc SIU),Amazon.co.uk MT7BB84M4,Assistant Chief Executive (Excl SIU),12.02,ICT,1819Q03_PC00192
Sandwell Metropolitan Borough Council,http://www.sandwell.gov.uk/info/200202/performance_and_spending/3233/government_procurement_cards,17-Oct-2018,Resources (Inc SIU),AMZN Mktp UK,Assistant Chief Executive (Excl SIU),29.92,ICT,1819Q03_PC00193
Sandwell Metropolitan Borough Council,http://www.sandwell.gov.uk/info/200202/performance_and_spending/3233/government_procurement_cards,17-Oct-2018,Childrens Services,ASDA STORES LTD 5865,Childrens Services,3.66,Catering Provisions,1819Q03_PC00194
Sandwell Metropolitan Borough Council,http://www.sandwell.gov.uk/info/200202/performance_and_spending/3233/government_procurement_cards,17-Oct-2018,Adult Social Care Health and Wellbeing - Total,AMZN MKTP UK AMAZON.CO,Total Adult Social Care,49.97,Materials & Consumables,1819Q03_PC00195
Sandwell Metropolitan Borough Council,http://www.sandwell.gov.uk/info/200202/performance_and_spending/3233/government_procurement_cards,17-Oct-2018,Housing & Communities,HIGHFIELD HOUSE HO,Neighbourhoods,525,Operational Services,1819Q03_PC00196
Sandwell Metropolitan Borough Council,http://www.sandwell.gov.uk/info/200202/performance_and_spending/3233/government_procurement_cards,17-Oct-2018,Housing & Communities,Amazon.co.uk,Neighbourhoods,2.74,Printing Stationery&Gen Office,1819Q03_PC00197
Sandwell Metropolitan Borough Council,http://www.sandwell.gov.uk/info/200202/performance_and_spending/3233/government_procurement_cards,17-Oct-2018,Adult Social Care Health and Wellbeing - Total,Amazon.co.uk,Total Adult Social Care,61.49,Catering Equipment,1819Q03_PC00198
Sandwell Metropolitan Borough Council,http://www.sandwell.gov.uk/info/200202/performance_and_spending/3233/government_procurement_cards,17-Oct-2018,Adult Social Care Health and Wellbeing - Total,AMZN Mktp UK,Total Adult Social Care,8.37,Equipment & Furniture,1819Q03_PC00199
Sandwell Metropolitan Borough Council,http://www.sandwell.gov.uk/info/200202/performance_and_spending/3233/government_procurement_cards,17-Oct-2018,Resources (Inc SIU),Trainline,Assistant Chief Executive (Excl SIU),117.14,Public Transport,1819Q03_PC00200
Sandwell Metropolitan Borough Council,http://www.sandwell.gov.uk/info/200202/performance_and_spending/3233/government_procurement_cards,17-Oct-2018,Childrens Services,ASDA STORES LTD 5865,Childrens Services,45.87,Catering Provisions,1819Q03_PC00201
Sandwell Metropolitan Borough Council,http://www.sandwell.gov.uk/info/200202/performance_and_spending/3233/government_procurement_cards,17-Oct-2018,Resources (Inc SIU),HMCOURTS-SERVICE.G,Assistant Chief Executive (Excl SIU),45,NNDR,1819Q03_PC00202
Sandwell Metropolitan Borough Council,http://www.sandwell.gov.uk/info/200202/performance_and_spending/3233/government_procurement_cards,17-Oct-2018,Adult Social Care Health and Wellbeing - Total,Trainline,Total Adult Social Care,18.85,Public Transport,1819Q03_PC00203
Sandwell Metropolitan Borough Council,http://www.sandwell.gov.uk/info/200202/performance_and_spending/3233/government_procurement_cards,17-Oct-2018,Corporate Management,PARTICIPANT UK LTD,Corporate Management,354,Conference Expenses,1819Q03_PC00204
Sandwell Metropolitan Borough Council,http://www.sandwell.gov.uk/info/200202/performance_and_spending/3233/government_procurement_cards,18-Oct-2018,Total Housing Revenue Account,INTUMESCENT SYSTEM,Total Housing Revenue Account,637.23,Materials & Consumables,1819Q03_PC00205
Sandwell Metropolitan Borough Council,http://www.sandwell.gov.uk/info/200202/performance_and_spending/3233/government_procurement_cards,18-Oct-2018,Adult Social Care Health and Wellbeing - Total,AMZN MKTP UK MT1AS7OA4,Total Adult Social Care,4.16,Materials & Consumables,1819Q03_PC00206
Sandwell Metropolitan Borough Council,http://www.sandwell.gov.uk/info/200202/performance_and_spending/3233/government_procurement_cards,18-Oct-2018,Adult Social Care Health and Wellbeing - Total,AMZN MKTP UK MT66N1L44,Total Adult Social Care,12.96,Materials & Consumables,1819Q03_PC00207
Sandwell Metropolitan Borough Council,http://www.sandwell.gov.uk/info/200202/performance_and_spending/3233/government_procurement_cards,18-Oct-2018,Adult Social Care Health and Wellbeing - Total,SPORTSDIRECT.COM,Total Adult Social Care,37.49,Protective Clothing&Uniforms,1819Q03_PC00208
Sandwell Metropolitan Borough Council,http://www.sandwell.gov.uk/info/200202/performance_and_spending/3233/government_procurement_cards,18-Oct-2018,Resources (Inc SIU),PREMIER INN,Assistant Chief Executive (Excl SIU),301.25,Conference Expenses,1819Q03_PC00209
Sandwell Metropolitan Borough Council,http://www.sandwell.gov.uk/info/200202/performance_and_spending/3233/government_procurement_cards,18-Oct-2018,Resources (Inc SIU),PREMIER INN,Assistant Chief Executive (Excl SIU),395,Conference Expenses,1819Q03_PC00210
Sandwell Metropolitan Borough Council,http://www.sandwell.gov.uk/info/200202/performance_and_spending/3233/government_procurement_cards,18-Oct-2018,Housing & Communities,TRAVELODGE,Neighbourhoods,-130,Operational Services,1819Q03_PC00211
Sandwell Metropolitan Borough Council,http://www.sandwell.gov.uk/info/200202/performance_and_spending/3233/government_procurement_cards,18-Oct-2018,Regeneration & Growth,AMZN Mktp UK MT4M58LN4,Regeneration And The Economy,15.98,Printing Stationery&Gen Office,1819Q03_PC00212
Sandwell Metropolitan Borough Council,http://www.sandwell.gov.uk/info/200202/performance_and_spending/3233/government_procurement_cards,18-Oct-2018,Regeneration & Growth,WWW.SLINGSBY.COM,Regeneration And The Economy,243,Fixtures & Fittings,1819Q03_PC00213
Sandwell Metropolitan Borough Council,http://www.sandwell.gov.uk/info/200202/performance_and_spending/3233/government_procurement_cards,18-Oct-2018,Housing & Communities,SUK RETAIL LTD,Neighbourhoods,39.15,Materials & Consumables,1819Q03_PC00214
Sandwell Metropolitan Borough Council,http://www.sandwell.gov.uk/info/200202/performance_and_spending/3233/government_procurement_cards,18-Oct-2018,Adult Social Care Health and Wellbeing - Total,WWW.OFFICEFURNITUREONL,Total Adult Social Care,112,Fixtures & Fittings,1819Q03_PC00215
Sandwell Metropolitan Borough Council,http://www.sandwell.gov.uk/info/200202/performance_and_spending/3233/government_procurement_cards,18-Oct-2018,Regeneration & Growth,AMZN Mktp UK,Regeneration And The Economy,7.47,Printing Stationery&Gen Office,1819Q03_PC00216
Sandwell Metropolitan Borough Council,http://www.sandwell.gov.uk/info/200202/performance_and_spending/3233/government_procurement_cards,18-Oct-2018,Regeneration & Growth,TIMPSON LTD,Regeneration And The Economy,13.75,R & M - Security,1819Q03_PC00217
Sandwell Metropolitan Borough Council,http://www.sandwell.gov.uk/info/200202/performance_and_spending/3233/government_procurement_cards,18-Oct-2018,Regeneration & Growth,OU CONTINUING ED,Regeneration And The Economy,180,Conference Expenses,1819Q03_PC00218
Sandwell Metropolitan Borough Council,http://www.sandwell.gov.uk/info/200202/performance_and_spending/3233/government_procurement_cards,18-Oct-2018,Housing & Communities,EB  DCDC18 CONFERENCE,Neighbourhoods,105.25,Conference Expenses,1819Q03_PC00219
Sandwell Metropolitan Borough Council,http://www.sandwell.gov.uk/info/200202/performance_and_spending/3233/government_procurement_cards,18-Oct-2018,Corporate Management,WWW.PARTYDELIGHTS.CO.U,Corporate Management,145.03,Civic Events,1819Q03_PC00220
Sandwell Metropolitan Borough Council,http://www.sandwell.gov.uk/info/200202/performance_and_spending/3233/government_procurement_cards,18-Oct-2018,Housing & Communities,TRAVELODGE,Neighbourhoods,70,Operational Services,1819Q03_PC00221
Sandwell Metropolitan Borough Council,http://www.sandwell.gov.uk/info/200202/performance_and_spending/3233/government_procurement_cards,18-Oct-2018,Resources (Inc SIU),Trainline,Assistant Chief Executive (Excl SIU),59.5,Public Transport,1819Q03_PC00222
Sandwell Metropolitan Borough Council,http://www.sandwell.gov.uk/info/200202/performance_and_spending/3233/government_procurement_cards,18-Oct-2018,Housing & Communities,DVSA MOT COMP 2,Neighbourhoods,1025,Licences&Test Fees,1819Q03_PC00223
Sandwell Metropolitan Borough Council,http://www.sandwell.gov.uk/info/200202/performance_and_spending/3233/government_procurement_cards,18-Oct-2018,Childrens Services,POST OFFICE COUNTER,Childrens Services,6.5,"Postages, Carriage & Courier Services",1819Q03_PC00224
Sandwell Metropolitan Borough Council,http://www.sandwell.gov.uk/info/200202/performance_and_spending/3233/government_procurement_cards,18-Oct-2018,Childrens Services,Virgin Trains,Childrens Services,87,Public Transport,1819Q03_PC00225
Sandwell Metropolitan Borough Council,http://www.sandwell.gov.uk/info/200202/performance_and_spending/3233/government_procurement_cards,18-Oct-2018,Resources (Inc SIU),PAYPAL  CONFETTI MA,Assistant Chief Executive (Excl SIU),66.98,Materials & Consumables,1819Q03_PC00226
Sandwell Metropolitan Borough Council,http://www.sandwell.gov.uk/info/200202/performance_and_spending/3233/government_procurement_cards,18-Oct-2018,Resources (Inc SIU),PAYPAL  ROADTRANSPO,Assistant Chief Executive (Excl SIU),2240,Conference Expenses,1819Q03_PC00227
Sandwell Metropolitan Borough Council,http://www.sandwell.gov.uk/info/200202/performance_and_spending/3233/government_procurement_cards,19-Oct-2018,Resources (Inc SIU),PREMIER INN,Assistant Chief Executive (Excl SIU),307.47,Conference Expenses,1819Q03_PC00228
Sandwell Metropolitan Borough Council,http://www.sandwell.gov.uk/info/200202/performance_and_spending/3233/government_procurement_cards,19-Oct-2018,Resources (Inc SIU),PAYPAL  DIGIKARTLIM,Assistant Chief Executive (Excl SIU),11.45,Equipment & Furniture,1819Q03_PC00229
Sandwell Metropolitan Borough Council,http://www.sandwell.gov.uk/info/200202/performance_and_spending/3233/government_procurement_cards,19-Oct-2018,Housing & Communities,TESCO PFS 5270,Neighbourhoods,4.94,Catering Provisions,1819Q03_PC00230
Sandwell Metropolitan Borough Council,http://www.sandwell.gov.uk/info/200202/performance_and_spending/3233/government_procurement_cards,19-Oct-2018,Total Housing Revenue Account,AMZN Mktp UK MT82Q3ZO4,Total Housing Revenue Account,13.12,Materials & Consumables,1819Q03_PC00231
Sandwell Metropolitan Borough Council,http://www.sandwell.gov.uk/info/200202/performance_and_spending/3233/government_procurement_cards,19-Oct-2018,Regeneration & Growth,AMZN Mktp UK,Regeneration And The Economy,17.75,Printing Stationery&Gen Office,1819Q03_PC00232
Sandwell Metropolitan Borough Council,http://www.sandwell.gov.uk/info/200202/performance_and_spending/3233/government_procurement_cards,19-Oct-2018,Regeneration & Growth,AMZN Mktp UK,Regeneration And The Economy,4.08,Printing Stationery&Gen Office,1819Q03_PC00233
Sandwell Metropolitan Borough Council,http://www.sandwell.gov.uk/info/200202/performance_and_spending/3233/government_procurement_cards,19-Oct-2018,Housing & Communities,THE DOGHOUSE ANTIQUES,Neighbourhoods,208.33,Equipment & Furniture,1819Q03_PC00234
Sandwell Metropolitan Borough Council,http://www.sandwell.gov.uk/info/200202/performance_and_spending/3233/government_procurement_cards,19-Oct-2018,Adult Social Care Health and Wellbeing - Total,POUNDSTRETCHER 168,Total Adult Social Care,10.86,Materials & Consumables,1819Q03_PC00235
Sandwell Metropolitan Borough Council,http://www.sandwell.gov.uk/info/200202/performance_and_spending/3233/government_procurement_cards,19-Oct-2018,Housing & Communities,AMZN Mktp UK MT6WD3Z54,Neighbourhoods,80.32,ICT,1819Q03_PC00236
Sandwell Metropolitan Borough Council,http://www.sandwell.gov.uk/info/200202/performance_and_spending/3233/government_procurement_cards,19-Oct-2018,Housing & Communities,AMZN Mktp UK MT08U9LG4,Neighbourhoods,472.5,ICT,1819Q03_PC00237
Sandwell Metropolitan Borough Council,http://www.sandwell.gov.uk/info/200202/performance_and_spending/3233/government_procurement_cards,19-Oct-2018,Childrens Services,KAITAKARE LIMITED,Childrens Services,90,R& M - Building Maint&Imp.,1819Q03_PC00238
Sandwell Metropolitan Borough Council,http://www.sandwell.gov.uk/info/200202/performance_and_spending/3233/government_procurement_cards,19-Oct-2018,Housing & Communities,TRAVELODGE,Neighbourhoods,387.5,Operational Services,1819Q03_PC00239
Sandwell Metropolitan Borough Council,http://www.sandwell.gov.uk/info/200202/performance_and_spending/3233/government_procurement_cards,19-Oct-2018,Housing & Communities,POUNDLAND LTD 1576,Neighbourhoods,25.08,Materials & Consumables,1819Q03_PC00240
Sandwell Metropolitan Borough Council,http://www.sandwell.gov.uk/info/200202/performance_and_spending/3233/government_procurement_cards,19-Oct-2018,Total Housing Revenue Account,CURRYS SUPERSTORE,Total Housing Revenue Account,24.99,Printing Stationery&Gen Office,1819Q03_PC00241
Sandwell Metropolitan Borough Council,http://www.sandwell.gov.uk/info/200202/performance_and_spending/3233/government_procurement_cards,19-Oct-2018,Childrens Services,ASDA GROCERIES ONLINE,Childrens Services,0.02,Catering Provisions,1819Q03_PC00242
Sandwell Metropolitan Borough Council,http://www.sandwell.gov.uk/info/200202/performance_and_spending/3233/government_procurement_cards,19-Oct-2018,Childrens Services,ASDA GROCERIES ONLINE,Childrens Services,52.48,Catering Provisions,1819Q03_PC00243
Sandwell Metropolitan Borough Council,http://www.sandwell.gov.uk/info/200202/performance_and_spending/3233/government_procurement_cards,19-Oct-2018,Individual School Budgets With Inclusion,SANDWELL & DUD T/O,Individual School Budgets With Inclusion,49,Public Transport,1819Q03_PC00244
Sandwell Metropolitan Borough Council,http://www.sandwell.gov.uk/info/200202/performance_and_spending/3233/government_procurement_cards,19-Oct-2018,Individual School Budgets With Inclusion,SANDWELL & DUD T/O,Individual School Budgets With Inclusion,26.1,Public Transport,1819Q03_PC00245
Sandwell Metropolitan Borough Council,http://www.sandwell.gov.uk/info/200202/performance_and_spending/3233/government_procurement_cards,19-Oct-2018,Housing & Communities,POUNDSTRETCHER 003,Neighbourhoods,20.05,Materials & Consumables,1819Q03_PC00246
Sandwell Metropolitan Borough Council,http://www.sandwell.gov.uk/info/200202/performance_and_spending/3233/government_procurement_cards,19-Oct-2018,Resources (Inc SIU),AMZN Mktp UK MT1E68LR4,Assistant Chief Executive (Excl SIU),12.46,Printing Stationery&Gen Office,1819Q03_PC00247
Sandwell Metropolitan Borough Council,http://www.sandwell.gov.uk/info/200202/performance_and_spending/3233/government_procurement_cards,19-Oct-2018,Adult Social Care Health and Wellbeing - Total,ARGOS OLDBURY,Total Adult Social Care,-26.65,Employee Expenses,1819Q03_PC00248
Sandwell Metropolitan Borough Council,http://www.sandwell.gov.uk/info/200202/performance_and_spending/3233/government_procurement_cards,22-Oct-2018,Resources (Inc SIU),DRI Lenovo,Assistant Chief Executive (Excl SIU),75,ICT,1819Q03_PC00249
Sandwell Metropolitan Borough Council,http://www.sandwell.gov.uk/info/200202/performance_and_spending/3233/government_procurement_cards,22-Oct-2018,Childrens Services,LYCO DIRECT LTD,Childrens Services,38.89,R& M - Building Maint&Imp.,1819Q03_PC00250
Sandwell Metropolitan Borough Council,http://www.sandwell.gov.uk/info/200202/performance_and_spending/3233/government_procurement_cards,22-Oct-2018,Regeneration & Growth,AMZN Mktp UK MT3NX4ZY4,Regeneration And The Economy,10.98,Printing Stationery&Gen Office,1819Q03_PC00251
Sandwell Metropolitan Borough Council,http://www.sandwell.gov.uk/info/200202/performance_and_spending/3233/government_procurement_cards,22-Oct-2018,Housing & Communities,BIRMINGHAM CATERING HI,Neighbourhoods,70,Equipment & Furniture,1819Q03_PC00252
Sandwell Metropolitan Borough Council,http://www.sandwell.gov.uk/info/200202/performance_and_spending/3233/government_procurement_cards,22-Oct-2018,Housing & Communities,EXPRESS & STAR,Neighbourhoods,362.93,Ind. Emp Exp-Advertising,1819Q03_PC00253
Sandwell Metropolitan Borough Council,http://www.sandwell.gov.uk/info/200202/performance_and_spending/3233/government_procurement_cards,22-Oct-2018,Resources (Inc SIU),AMZN Mktp UK MT4YN2T04,Assistant Chief Executive (Excl SIU),13.71,ICT,1819Q03_PC00254
Sandwell Metropolitan Borough Council,http://www.sandwell.gov.uk/info/200202/performance_and_spending/3233/government_procurement_cards,22-Oct-2018,Housing & Communities,AMZN Mktp UK MT3FC5TY4,Neighbourhoods,11.15,Ind. Emp Exp-Emp. Welfare,1819Q03_PC00255
Sandwell Metropolitan Borough Council,http://www.sandwell.gov.uk/info/200202/performance_and_spending/3233/government_procurement_cards,22-Oct-2018,Total Housing Revenue Account,WWW.KANE.CO.UK,Total Housing Revenue Account,2702.5,Equipment & Furniture,1819Q03_PC00256
Sandwell Metropolitan Borough Council,http://www.sandwell.gov.uk/info/200202/performance_and_spending/3233/government_procurement_cards,22-Oct-2018,Housing & Communities,AMZN Mktp UK MT3ZL7TN4,Neighbourhoods,9.16,Equipment & Furniture,1819Q03_PC00257
Sandwell Metropolitan Borough Council,http://www.sandwell.gov.uk/info/200202/performance_and_spending/3233/government_procurement_cards,22-Oct-2018,Total Housing Revenue Account,STAFFORDSHIRE BLDS SUP,Total Housing Revenue Account,96.93,Materials & Consumables,1819Q03_PC00258
Sandwell Metropolitan Borough Council,http://www.sandwell.gov.uk/info/200202/performance_and_spending/3233/government_procurement_cards,22-Oct-2018,Total Housing Revenue Account,WWW.KANE.CO.UK,Total Housing Revenue Account,229.5,Materials & Consumables,1819Q03_PC00259
Sandwell Metropolitan Borough Council,http://www.sandwell.gov.uk/info/200202/performance_and_spending/3233/government_procurement_cards,22-Oct-2018,Childrens Services,TONER INK ONLINE,Childrens Services,30.99,Printing Stationery&Gen Office,1819Q03_PC00260
Sandwell Metropolitan Borough Council,http://www.sandwell.gov.uk/info/200202/performance_and_spending/3233/government_procurement_cards,22-Oct-2018,Resources (Inc SIU),AMZN MKTP UK MT0PS7T84,Assistant Chief Executive (Excl SIU),50.36,ICT,1819Q03_PC00261
Sandwell Metropolitan Borough Council,http://www.sandwell.gov.uk/info/200202/performance_and_spending/3233/government_procurement_cards,22-Oct-2018,Resources (Inc SIU),SP   ACT NOW TRAINING,Assistant Chief Executive (Excl SIU),224.95,Printing Stationery&Gen Office,1819Q03_PC00262
Sandwell Metropolitan Borough Council,http://www.sandwell.gov.uk/info/200202/performance_and_spending/3233/government_procurement_cards,22-Oct-2018,Resources (Inc SIU),CC UNIFORMS,Strategic Investment Unit,48,Protective Clothing&Uniforms,1819Q03_PC00263
Sandwell Metropolitan Borough Council,http://www.sandwell.gov.uk/info/200202/performance_and_spending/3233/government_procurement_cards,22-Oct-2018,Resources Capital,DRI Lenovo,Resources Capital,75,ICT,1819Q03_PC00264
Sandwell Metropolitan Borough Council,http://www.sandwell.gov.uk/info/200202/performance_and_spending/3233/government_procurement_cards,22-Oct-2018,Resources Capital,DRI Lenovo,Resources Capital,75,ICT,1819Q03_PC00265
Sandwell Metropolitan Borough Council,http://www.sandwell.gov.uk/info/200202/performance_and_spending/3233/government_procurement_cards,22-Oct-2018,Housing & Communities,ASDA STORES LTD 5865,Neighbourhoods,6.48,Catering Provisions,1819Q03_PC00266
Sandwell Metropolitan Borough Council,http://www.sandwell.gov.uk/info/200202/performance_and_spending/3233/government_procurement_cards,22-Oct-2018,Housing & Communities,ALDI 9 772,Neighbourhoods,16.8,Catering Provisions,1819Q03_PC00267
Sandwell Metropolitan Borough Council,http://www.sandwell.gov.uk/info/200202/performance_and_spending/3233/government_procurement_cards,22-Oct-2018,Childrens Services,WILKO RETAIL LIMIT,Childrens Services,12.5,Catering Equipment,1819Q03_PC00268
Sandwell Metropolitan Borough Council,http://www.sandwell.gov.uk/info/200202/performance_and_spending/3233/government_procurement_cards,22-Oct-2018,Childrens Services,WILKO RETAIL LIMIT,Childrens Services,5.83,Materials & Consumables,1819Q03_PC00269
Sandwell Metropolitan Borough Council,http://www.sandwell.gov.uk/info/200202/performance_and_spending/3233/government_procurement_cards,22-Oct-2018,Housing & Communities,SELECT-449,Neighbourhoods,16.63,Civic Events,1819Q03_PC00270
Sandwell Metropolitan Borough Council,http://www.sandwell.gov.uk/info/200202/performance_and_spending/3233/government_procurement_cards,22-Oct-2018,Housing & Communities,BRITISH HEART FOUNDATI,Neighbourhoods,1.7,Materials & Consumables,1819Q03_PC00271
Sandwell Metropolitan Borough Council,http://www.sandwell.gov.uk/info/200202/performance_and_spending/3233/government_procurement_cards,22-Oct-2018,Housing & Communities,TJ HUGHES,Neighbourhoods,13.37,Civic Events,1819Q03_PC00272
Sandwell Metropolitan Borough Council,http://www.sandwell.gov.uk/info/200202/performance_and_spending/3233/government_procurement_cards,22-Oct-2018,Resources (Inc SIU),AMZN MKTP UK MT2J55JB4,Assistant Chief Executive (Excl SIU),37.46,ICT,1819Q03_PC00273
Sandwell Metropolitan Borough Council,http://www.sandwell.gov.uk/info/200202/performance_and_spending/3233/government_procurement_cards,22-Oct-2018,Childrens Services,ARGOS LTD,Childrens Services,4.99,Equipment & Furniture,1819Q03_PC00274
Sandwell Metropolitan Borough Council,http://www.sandwell.gov.uk/info/200202/performance_and_spending/3233/government_procurement_cards,22-Oct-2018,Resources (Inc SIU),AMZN Mktp UK MT2PZ0A64,Assistant Chief Executive (Excl SIU),22.99,Equipment & Furniture,1819Q03_PC00275
Sandwell Metropolitan Borough Council,http://www.sandwell.gov.uk/info/200202/performance_and_spending/3233/government_procurement_cards,23-Oct-2018,Corporate Management,AMZN MKTP UK MT7YN6ET4,Corporate Management,29.56,Printing Stationery&Gen Office,1819Q03_PC00276
Sandwell Metropolitan Borough Council,http://www.sandwell.gov.uk/info/200202/performance_and_spending/3233/government_procurement_cards,23-Oct-2018,Housing & Communities,TIMPSON LTD,Neighbourhoods,6.67,Materials & Consumables,1819Q03_PC00277
Sandwell Metropolitan Borough Council,http://www.sandwell.gov.uk/info/200202/performance_and_spending/3233/government_procurement_cards,23-Oct-2018,Housing & Communities,B & M RETAIL,Neighbourhoods,8.03,Materials & Consumables,1819Q03_PC00278
Sandwell Metropolitan Borough Council,http://www.sandwell.gov.uk/info/200202/performance_and_spending/3233/government_procurement_cards,23-Oct-2018,Housing & Communities,DUNELM (SOFT FURNISHIN,Neighbourhoods,29.17,Catering Equipment,1819Q03_PC00279
Sandwell Metropolitan Borough Council,http://www.sandwell.gov.uk/info/200202/performance_and_spending/3233/government_procurement_cards,23-Oct-2018,Resources (Inc SIU),AMZN MKTP UK MT3SA5AX4,Assistant Chief Executive (Excl SIU),33.25,ICT,1819Q03_PC00280
Sandwell Metropolitan Borough Council,http://www.sandwell.gov.uk/info/200202/performance_and_spending/3233/government_procurement_cards,23-Oct-2018,Childrens Services,ASDA GROCERIES ONLINE,Childrens Services,-0.58,Catering Provisions,1819Q03_PC00281
Sandwell Metropolitan Borough Council,http://www.sandwell.gov.uk/info/200202/performance_and_spending/3233/government_procurement_cards,23-Oct-2018,Childrens Services,ASDA GROCERIES ONLINE,Childrens Services,98.36,Catering Provisions,1819Q03_PC00282
Sandwell Metropolitan Borough Council,http://www.sandwell.gov.uk/info/200202/performance_and_spending/3233/government_procurement_cards,23-Oct-2018,Childrens Services,WM MORRISONS STORE,Childrens Services,4.4,Catering Provisions,1819Q03_PC00283
Sandwell Metropolitan Borough Council,http://www.sandwell.gov.uk/info/200202/performance_and_spending/3233/government_procurement_cards,23-Oct-2018,Housing & Communities,Trainline,Neighbourhoods,4.32,Public Transport,1819Q03_PC00284
Sandwell Metropolitan Borough Council,http://www.sandwell.gov.uk/info/200202/performance_and_spending/3233/government_procurement_cards,23-Oct-2018,Housing & Communities,Trainline,Neighbourhoods,8.38,Public Transport,1819Q03_PC00285
Sandwell Metropolitan Borough Council,http://www.sandwell.gov.uk/info/200202/performance_and_spending/3233/government_procurement_cards,23-Oct-2018,Housing & Communities,Trainline,Neighbourhoods,38.5,Public Transport,1819Q03_PC00286
Sandwell Metropolitan Borough Council,http://www.sandwell.gov.uk/info/200202/performance_and_spending/3233/government_procurement_cards,23-Oct-2018,Adult Social Care Health and Wellbeing - Total,EB  THE ROUTE TO COMPE,Total Adult Social Care,48,Ind. Emp Exp-Staff Dev&Training,1819Q03_PC00287
Sandwell Metropolitan Borough Council,http://www.sandwell.gov.uk/info/200202/performance_and_spending/3233/government_procurement_cards,23-Oct-2018,Housing & Communities,Trainline,Neighbourhoods,88.3,Public Transport,1819Q03_PC00288
Sandwell Metropolitan Borough Council,http://www.sandwell.gov.uk/info/200202/performance_and_spending/3233/government_procurement_cards,23-Oct-2018,Resources (Inc SIU),OFFICE 365 FOR IT PROS,Assistant Chief Executive (Excl SIU),47.61,ICT,1819Q03_PC00289
Sandwell Metropolitan Borough Council,http://www.sandwell.gov.uk/info/200202/performance_and_spending/3233/government_procurement_cards,23-Oct-2018,Housing & Communities,ROYAL MAIL,Neighbourhoods,750.4,Materials & Consumables,1819Q03_PC00290
Sandwell Metropolitan Borough Council,http://www.sandwell.gov.uk/info/200202/performance_and_spending/3233/government_procurement_cards,23-Oct-2018,Adult Social Care Health and Wellbeing - Total,AMZN Mktp UK MT1AK93U4,Total Adult Social Care,65.99,R & M - Security,1819Q03_PC00291
Sandwell Metropolitan Borough Council,http://www.sandwell.gov.uk/info/200202/performance_and_spending/3233/government_procurement_cards,23-Oct-2018,Childrens Services,Virgin Trains,Childrens Services,102,Public Transport,1819Q03_PC00292
Sandwell Metropolitan Borough Council,http://www.sandwell.gov.uk/info/200202/performance_and_spending/3233/government_procurement_cards,23-Oct-2018,Childrens Services,TFL VISITOR SHOP,Childrens Services,53.7,Public Transport,1819Q03_PC00293
Sandwell Metropolitan Borough Council,http://www.sandwell.gov.uk/info/200202/performance_and_spending/3233/government_procurement_cards,23-Oct-2018,Childrens Services,AMZN MKTP UK MT1200E34,Childrens Services,6.88,Catering Provisions,1819Q03_PC00294
Sandwell Metropolitan Borough Council,http://www.sandwell.gov.uk/info/200202/performance_and_spending/3233/government_procurement_cards,23-Oct-2018,Resources (Inc SIU),Amazon.co.uk MT8GY1EE4,Assistant Chief Executive (Excl SIU),42.7,Printing Stationery&Gen Office,1819Q03_PC00295
Sandwell Metropolitan Borough Council,http://www.sandwell.gov.uk/info/200202/performance_and_spending/3233/government_procurement_cards,23-Oct-2018,Resources (Inc SIU),Amazon.co.uk MT4D78344,Assistant Chief Executive (Excl SIU),13.19,Printing Stationery&Gen Office,1819Q03_PC00296
Sandwell Metropolitan Borough Council,http://www.sandwell.gov.uk/info/200202/performance_and_spending/3233/government_procurement_cards,23-Oct-2018,Childrens Services,WWW.CABLING4LESS.CO.UK,Childrens Services,64.06,Equipment & Furniture,1819Q03_PC00297
Sandwell Metropolitan Borough Council,http://www.sandwell.gov.uk/info/200202/performance_and_spending/3233/government_procurement_cards,23-Oct-2018,Childrens Services,FILOFAX LETTS BLUELINE,Childrens Services,11.62,Printing Stationery&Gen Office,1819Q03_PC00298
Sandwell Metropolitan Borough Council,http://www.sandwell.gov.uk/info/200202/performance_and_spending/3233/government_procurement_cards,23-Oct-2018,Resources (Inc SIU),AMZN Mktp UK MT3D543L4,Assistant Chief Executive (Excl SIU),98.25,Printing Stationery&Gen Office,1819Q03_PC00299
Sandwell Metropolitan Borough Council,http://www.sandwell.gov.uk/info/200202/performance_and_spending/3233/government_procurement_cards,23-Oct-2018,Resources (Inc SIU),AMZN Mktp UK MT4ED0ED4,Assistant Chief Executive (Excl SIU),24.99,Materials & Consumables,1819Q03_PC00300
Sandwell Metropolitan Borough Council,http://www.sandwell.gov.uk/info/200202/performance_and_spending/3233/government_procurement_cards,23-Oct-2018,Housing & Communities,Cross Country Trains,Neighbourhoods,45,Public Transport,1819Q03_PC00301
Sandwell Metropolitan Borough Council,http://www.sandwell.gov.uk/info/200202/performance_and_spending/3233/government_procurement_cards,24-Oct-2018,Childrens Services,SPORTSDIRECT.COM,Childrens Services,94.89,Materials & Consumables,1819Q03_PC00302
Sandwell Metropolitan Borough Council,http://www.sandwell.gov.uk/info/200202/performance_and_spending/3233/government_procurement_cards,24-Oct-2018,Childrens Services,PAYPAL  MWARD418,Childrens Services,30.98,Equipment & Furniture,1819Q03_PC00303
Sandwell Metropolitan Borough Council,http://www.sandwell.gov.uk/info/200202/performance_and_spending/3233/government_procurement_cards,24-Oct-2018,Resources (Inc SIU),Amazon.co.uk MT5R19064,Assistant Chief Executive (Excl SIU),328.67,ICT,1819Q03_PC00304
Sandwell Metropolitan Borough Council,http://www.sandwell.gov.uk/info/200202/performance_and_spending/3233/government_procurement_cards,24-Oct-2018,Housing & Communities,WWW.TOOLSTATION.COM,Neighbourhoods,77.36,Equipment & Furniture,1819Q03_PC00305
Sandwell Metropolitan Borough Council,http://www.sandwell.gov.uk/info/200202/performance_and_spending/3233/government_procurement_cards,24-Oct-2018,Childrens Services,PEIRIANWAITH EIFIONYDD,Childrens Services,15.83,Grounds Maint&Improvements,1819Q03_PC00306
Sandwell Metropolitan Borough Council,http://www.sandwell.gov.uk/info/200202/performance_and_spending/3233/government_procurement_cards,24-Oct-2018,Housing & Communities,SCREWFIX DIRECT,Neighbourhoods,29.97,Equipment & Furniture,1819Q03_PC00307
Sandwell Metropolitan Borough Council,http://www.sandwell.gov.uk/info/200202/performance_and_spending/3233/government_procurement_cards,24-Oct-2018,Adult Social Care Health and Wellbeing - Total,SCREWFIX DIRECT,Total Adult Social Care,58.33,Ind. Emp Exp-Staff Dev&Training,1819Q03_PC00308
Sandwell Metropolitan Borough Council,http://www.sandwell.gov.uk/info/200202/performance_and_spending/3233/government_procurement_cards,24-Oct-2018,Housing & Communities,SCREWFIX DIRECT,Neighbourhoods,58.25,Equipment & Furniture,1819Q03_PC00309
Sandwell Metropolitan Borough Council,http://www.sandwell.gov.uk/info/200202/performance_and_spending/3233/government_procurement_cards,24-Oct-2018,Childrens Services,AMZN Mktp UK MT4NJ7014,Childrens Services,4.08,Catering Equipment,1819Q03_PC00310
Sandwell Metropolitan Borough Council,http://www.sandwell.gov.uk/info/200202/performance_and_spending/3233/government_procurement_cards,24-Oct-2018,Corporate Management,CHARLIES SWEET CENTRE,Corporate Management,37.5,Civic Events,1819Q03_PC00311
Sandwell Metropolitan Borough Council,http://www.sandwell.gov.uk/info/200202/performance_and_spending/3233/government_procurement_cards,24-Oct-2018,Childrens Services,Cross Country Trains,Childrens Services,134,Public Transport,1819Q03_PC00312
Sandwell Metropolitan Borough Council,http://www.sandwell.gov.uk/info/200202/performance_and_spending/3233/government_procurement_cards,24-Oct-2018,Childrens Services,ASDA STORES LTD 5865,Childrens Services,5.56,Catering Provisions,1819Q03_PC00313
Sandwell Metropolitan Borough Council,http://www.sandwell.gov.uk/info/200202/performance_and_spending/3233/government_procurement_cards,24-Oct-2018,Childrens Services,AMZN MKTP UK MT1ME4064,Childrens Services,19.29,Catering Provisions,1819Q03_PC00314
Sandwell Metropolitan Borough Council,http://www.sandwell.gov.uk/info/200202/performance_and_spending/3233/government_procurement_cards,24-Oct-2018,Childrens Services,AMZN MKTP UK MT8F700B4,Childrens Services,3.98,Catering Provisions,1819Q03_PC00315
Sandwell Metropolitan Borough Council,http://www.sandwell.gov.uk/info/200202/performance_and_spending/3233/government_procurement_cards,24-Oct-2018,Resources (Inc SIU),AMZN Mktp UK MT5GK10R4,Assistant Chief Executive (Excl SIU),8.29,ICT,1819Q03_PC00316
Sandwell Metropolitan Borough Council,http://www.sandwell.gov.uk/info/200202/performance_and_spending/3233/government_procurement_cards,24-Oct-2018,Resources (Inc SIU),HMCOURTS-SERVICE.G,Assistant Chief Executive (Excl SIU),529.5,Council Tax,1819Q03_PC00317
Sandwell Metropolitan Borough Council,http://www.sandwell.gov.uk/info/200202/performance_and_spending/3233/government_procurement_cards,24-Oct-2018,Housing & Communities,Trainline,Neighbourhoods,8.28,Public Transport,1819Q03_PC00318
Sandwell Metropolitan Borough Council,http://www.sandwell.gov.uk/info/200202/performance_and_spending/3233/government_procurement_cards,24-Oct-2018,Housing & Communities,AMZN Mktp UK MT4IE30G4,Neighbourhoods,11.79,Materials & Consumables,1819Q03_PC00319
Sandwell Metropolitan Borough Council,http://www.sandwell.gov.uk/info/200202/performance_and_spending/3233/government_procurement_cards,24-Oct-2018,Housing & Communities,AMZN Mktp UK MT0ZI3054,Neighbourhoods,14.38,Materials & Consumables,1819Q03_PC00320
Sandwell Metropolitan Borough Council,http://www.sandwell.gov.uk/info/200202/performance_and_spending/3233/government_procurement_cards,24-Oct-2018,Housing & Communities,AMZN Mktp UK MT9Z33034,Neighbourhoods,9.49,Materials & Consumables,1819Q03_PC00321
Sandwell Metropolitan Borough Council,http://www.sandwell.gov.uk/info/200202/performance_and_spending/3233/government_procurement_cards,24-Oct-2018,Regeneration & Growth,EX-STREAM CLEANING AND,Regeneration And The Economy,141.67,Contract Cleaning,1819Q03_PC00322
Sandwell Metropolitan Borough Council,http://www.sandwell.gov.uk/info/200202/performance_and_spending/3233/government_procurement_cards,25-Oct-2018,Resources (Inc SIU),PAYPAL  CREATIVECOM,Assistant Chief Executive (Excl SIU),24,Conference Expenses,1819Q03_PC00323
Sandwell Metropolitan Borough Council,http://www.sandwell.gov.uk/info/200202/performance_and_spending/3233/government_procurement_cards,25-Oct-2018,Resources (Inc SIU),PAYPAL  CREATIVECOM,Assistant Chief Executive (Excl SIU),24,Conference Expenses,1819Q03_PC00324
Sandwell Metropolitan Borough Council,http://www.sandwell.gov.uk/info/200202/performance_and_spending/3233/government_procurement_cards,25-Oct-2018,Adult Social Care Health and Wellbeing - Total,AIRBNB,Total Adult Social Care,44.27,Conference Expenses,1819Q03_PC00325
Sandwell Metropolitan Borough Council,http://www.sandwell.gov.uk/info/200202/performance_and_spending/3233/government_procurement_cards,25-Oct-2018,Corporate Management,AMZN Mktp UK MT2IV11M4,Corporate Management,12.07,Printing Stationery&Gen Office,1819Q03_PC00326
Sandwell Metropolitan Borough Council,http://www.sandwell.gov.uk/info/200202/performance_and_spending/3233/government_procurement_cards,25-Oct-2018,Total Housing Revenue Account,AMZN Mktp UK MT6QV1184,Total Housing Revenue Account,10.79,Printing Stationery&Gen Office,1819Q03_PC00327
Sandwell Metropolitan Borough Council,http://www.sandwell.gov.uk/info/200202/performance_and_spending/3233/government_procurement_cards,25-Oct-2018,Total Housing Revenue Account,AMZN Mktp UK MT02G9364,Total Housing Revenue Account,13.54,Printing Stationery&Gen Office,1819Q03_PC00328
Sandwell Metropolitan Borough Council,http://www.sandwell.gov.uk/info/200202/performance_and_spending/3233/government_procurement_cards,25-Oct-2018,Total Housing Revenue Account,AMZN Mktp UK MT51X41L4,Total Housing Revenue Account,56.73,Printing Stationery&Gen Office,1819Q03_PC00329
Sandwell Metropolitan Borough Council,http://www.sandwell.gov.uk/info/200202/performance_and_spending/3233/government_procurement_cards,25-Oct-2018,Total Housing Revenue Account,AMZN Mktp UK MT8PU61M4,Total Housing Revenue Account,2.07,Printing Stationery&Gen Office,1819Q03_PC00330
Sandwell Metropolitan Borough Council,http://www.sandwell.gov.uk/info/200202/performance_and_spending/3233/government_procurement_cards,25-Oct-2018,Housing & Communities,TESCO STORES 2335,Neighbourhoods,26.25,Catering Provisions,1819Q03_PC00331
Sandwell Metropolitan Borough Council,http://www.sandwell.gov.uk/info/200202/performance_and_spending/3233/government_procurement_cards,25-Oct-2018,Regeneration & Growth,KEYSOFT SOLUTIONS,Regeneration And The Economy,1650,Licences,1819Q03_PC00332
Sandwell Metropolitan Borough Council,http://www.sandwell.gov.uk/info/200202/performance_and_spending/3233/government_procurement_cards,25-Oct-2018,Childrens Services,HAMDDEN CARAVANS LIMIT,Childrens Services,93.48,Grounds Maint&Improvements,1819Q03_PC00333
Sandwell Metropolitan Borough Council,http://www.sandwell.gov.uk/info/200202/performance_and_spending/3233/government_procurement_cards,25-Oct-2018,Housing & Communities,AMZN Mktp UK MT2DB51E4,Neighbourhoods,14.09,Materials & Consumables,1819Q03_PC00334
Sandwell Metropolitan Borough Council,http://www.sandwell.gov.uk/info/200202/performance_and_spending/3233/government_procurement_cards,25-Oct-2018,Childrens Services,EB  CONFERENCE COUNTDO,Childrens Services,249,Ind. Emp Exp-Staff Dev&Training,1819Q03_PC00335
Sandwell Metropolitan Borough Council,http://www.sandwell.gov.uk/info/200202/performance_and_spending/3233/government_procurement_cards,25-Oct-2018,Housing & Communities,ICELAND,Neighbourhoods,7,Catering Provisions,1819Q03_PC00336
Sandwell Metropolitan Borough Council,http://www.sandwell.gov.uk/info/200202/performance_and_spending/3233/government_procurement_cards,25-Oct-2018,Housing & Communities,TESCO STORES 2335,Neighbourhoods,40,Catering Provisions,1819Q03_PC00337
Sandwell Metropolitan Borough Council,http://www.sandwell.gov.uk/info/200202/performance_and_spending/3233/government_procurement_cards,25-Oct-2018,Resources (Inc SIU),GUYS & ST. THOMAS,Assistant Chief Executive (Excl SIU),400,Ind. Emp Exp-Staff Dev&Training,1819Q03_PC00338
Sandwell Metropolitan Borough Council,http://www.sandwell.gov.uk/info/200202/performance_and_spending/3233/government_procurement_cards,25-Oct-2018,Childrens Services,WWW.RED17.CO.UK,Childrens Services,59.25,Equipment & Furniture,1819Q03_PC00339
Sandwell Metropolitan Borough Council,http://www.sandwell.gov.uk/info/200202/performance_and_spending/3233/government_procurement_cards,25-Oct-2018,Resources (Inc SIU),SAINSBURYS SACAT0558,Assistant Chief Executive (Excl SIU),2.5,Printing Stationery&Gen Office,1819Q03_PC00340
Sandwell Metropolitan Borough Council,http://www.sandwell.gov.uk/info/200202/performance_and_spending/3233/government_procurement_cards,26-Oct-2018,Housing & Communities,PREMIER INN,Neighbourhoods,-53.33,Operational Services,1819Q03_PC00341
Sandwell Metropolitan Borough Council,http://www.sandwell.gov.uk/info/200202/performance_and_spending/3233/government_procurement_cards,26-Oct-2018,Adult Social Care Health and Wellbeing - Total,Trainline,Total Adult Social Care,14.33,Public Transport,1819Q03_PC00342
Sandwell Metropolitan Borough Council,http://www.sandwell.gov.uk/info/200202/performance_and_spending/3233/government_procurement_cards,26-Oct-2018,Adult Social Care Health and Wellbeing - Total,Trainline,Total Adult Social Care,0.75,Public Transport,1819Q03_PC00343
Sandwell Metropolitan Borough Council,http://www.sandwell.gov.uk/info/200202/performance_and_spending/3233/government_procurement_cards,26-Oct-2018,Childrens Services,PAYPAL  WATERFILTER,Childrens Services,20.42,Equipment & Furniture,1819Q03_PC00344
Sandwell Metropolitan Borough Council,http://www.sandwell.gov.uk/info/200202/performance_and_spending/3233/government_procurement_cards,26-Oct-2018,Childrens Services,PAYPAL  TVMCHELTENH,Childrens Services,32.5,Equipment & Furniture,1819Q03_PC00345
Sandwell Metropolitan Borough Council,http://www.sandwell.gov.uk/info/200202/performance_and_spending/3233/government_procurement_cards,26-Oct-2018,Resources (Inc SIU),Virgin Trains,Assistant Chief Executive (Excl SIU),142.33,Public Transport,1819Q03_PC00346
Sandwell Metropolitan Borough Council,http://www.sandwell.gov.uk/info/200202/performance_and_spending/3233/government_procurement_cards,26-Oct-2018,Total Housing Revenue Account,SCREWFIX DIRECT LT,Total Housing Revenue Account,0.83,Materials & Consumables,1819Q03_PC00347
Sandwell Metropolitan Borough Council,http://www.sandwell.gov.uk/info/200202/performance_and_spending/3233/government_procurement_cards,26-Oct-2018,Adult Social Care Health and Wellbeing - Total,SAINSBURYS TO YOU 0558,Total Adult Social Care,11.17,Catering Provisions,1819Q03_PC00348
Sandwell Metropolitan Borough Council,http://www.sandwell.gov.uk/info/200202/performance_and_spending/3233/government_procurement_cards,26-Oct-2018,Housing & Communities,AMZN Mktp UK MT5UN5GA4,Neighbourhoods,5.82,Materials & Consumables,1819Q03_PC00349
Sandwell Metropolitan Borough Council,http://www.sandwell.gov.uk/info/200202/performance_and_spending/3233/government_procurement_cards,26-Oct-2018,Resources (Inc SIU),Village Hotel Manchest,Assistant Chief Executive (Excl SIU),124.17,Conference Expenses,1819Q03_PC00350
Sandwell Metropolitan Borough Council,http://www.sandwell.gov.uk/info/200202/performance_and_spending/3233/government_procurement_cards,26-Oct-2018,Housing & Communities,TRAVELODGE,Neighbourhoods,384.17,Operational Services,1819Q03_PC00351
Sandwell Metropolitan Borough Council,http://www.sandwell.gov.uk/info/200202/performance_and_spending/3233/government_procurement_cards,26-Oct-2018,Total Housing Revenue Account,AMZN Mktp UK MT2DE2GX4,Total Housing Revenue Account,10.67,Printing Stationery&Gen Office,1819Q03_PC00352
Sandwell Metropolitan Borough Council,http://www.sandwell.gov.uk/info/200202/performance_and_spending/3233/government_procurement_cards,26-Oct-2018,Regeneration & Growth,Amazon.co.uk MT2A03J44,Regeneration And The Economy,52.48,ICT,1819Q03_PC00353
Sandwell Metropolitan Borough Council,http://www.sandwell.gov.uk/info/200202/performance_and_spending/3233/government_procurement_cards,26-Oct-2018,Individual School Budgets With Inclusion,AMZN Mktp UK MT6G58GE4,Individual School Budgets With Inclusion,7.47,Materials & Consumables,1819Q03_PC00354
Sandwell Metropolitan Borough Council,http://www.sandwell.gov.uk/info/200202/performance_and_spending/3233/government_procurement_cards,26-Oct-2018,Individual School Budgets With Inclusion,AMZN Mktp UK MT0DN7J94,Individual School Budgets With Inclusion,4.91,Materials & Consumables,1819Q03_PC00355
Sandwell Metropolitan Borough Council,http://www.sandwell.gov.uk/info/200202/performance_and_spending/3233/government_procurement_cards,26-Oct-2018,Individual School Budgets With Inclusion,AMZN Mktp UK MT7C76JE4,Individual School Budgets With Inclusion,2.9,Materials & Consumables,1819Q03_PC00356
Sandwell Metropolitan Borough Council,http://www.sandwell.gov.uk/info/200202/performance_and_spending/3233/government_procurement_cards,26-Oct-2018,Housing & Communities,TICKETSOURCE LTD,Neighbourhoods,5400,Equipment & Furniture,1819Q03_PC00357
Sandwell Metropolitan Borough Council,http://www.sandwell.gov.uk/info/200202/performance_and_spending/3233/government_procurement_cards,26-Oct-2018,Housing & Communities,TICKETSOURCE.CO.UK,Neighbourhoods,100,Equipment & Furniture,1819Q03_PC00358
Sandwell Metropolitan Borough Council,http://www.sandwell.gov.uk/info/200202/performance_and_spending/3233/government_procurement_cards,26-Oct-2018,Adult Social Care Health and Wellbeing - Total,AMZN Mktp UK MT85J7G74,Total Adult Social Care,3.32,R & M - Security,1819Q03_PC00359
Sandwell Metropolitan Borough Council,http://www.sandwell.gov.uk/info/200202/performance_and_spending/3233/government_procurement_cards,26-Oct-2018,Total Housing Revenue Account,B & Q 1276,Total Housing Revenue Account,100,Materials & Consumables,1819Q03_PC00360
Sandwell Metropolitan Borough Council,http://www.sandwell.gov.uk/info/200202/performance_and_spending/3233/government_procurement_cards,26-Oct-2018,Childrens Services,ASDA STORES LTD 5865,Childrens Services,8.23,Materials & Consumables,1819Q03_PC00361
Sandwell Metropolitan Borough Council,http://www.sandwell.gov.uk/info/200202/performance_and_spending/3233/government_procurement_cards,26-Oct-2018,Total Housing Revenue Account,SCREWFIX DIRECT LT,Total Housing Revenue Account,6.32,Materials & Consumables,1819Q03_PC00362
Sandwell Metropolitan Borough Council,http://www.sandwell.gov.uk/info/200202/performance_and_spending/3233/government_procurement_cards,26-Oct-2018,Total Housing Revenue Account,ARCO LTD,Total Housing Revenue Account,123.32,Protective Clothing&Uniforms,1819Q03_PC00363
Sandwell Metropolitan Borough Council,http://www.sandwell.gov.uk/info/200202/performance_and_spending/3233/government_procurement_cards,26-Oct-2018,Resources (Inc SIU),AMZN MKTP UK MT6U35JU4,Assistant Chief Executive (Excl SIU),12.48,Printing Stationery&Gen Office,1819Q03_PC00364
Sandwell Metropolitan Borough Council,http://www.sandwell.gov.uk/info/200202/performance_and_spending/3233/government_procurement_cards,26-Oct-2018,Housing & Communities,TESCO STORES 6141,Neighbourhoods,1.67,Catering Provisions,1819Q03_PC00365
Sandwell Metropolitan Borough Council,http://www.sandwell.gov.uk/info/200202/performance_and_spending/3233/government_procurement_cards,26-Oct-2018,Housing & Communities,AMZN Mktp UK MT28D1154,Neighbourhoods,4.99,Civic Events,1819Q03_PC00366
Sandwell Metropolitan Borough Council,http://www.sandwell.gov.uk/info/200202/performance_and_spending/3233/government_procurement_cards,26-Oct-2018,Housing & Communities,AMZN Mktp UK MT38T73X4,Neighbourhoods,33.32,Fixtures & Fittings,1819Q03_PC00367
Sandwell Metropolitan Borough Council,http://www.sandwell.gov.uk/info/200202/performance_and_spending/3233/government_procurement_cards,26-Oct-2018,Resources (Inc SIU),DUDLEY MBC  INTERN,Assistant Chief Executive (Excl SIU),15.5,Bereavement Expenses,1819Q03_PC00368
Sandwell Metropolitan Borough Council,http://www.sandwell.gov.uk/info/200202/performance_and_spending/3233/government_procurement_cards,26-Oct-2018,Individual School Budgets With Inclusion,AMZN Mktp UK MT0MQ7GL4,Individual School Budgets With Inclusion,14.22,Materials & Consumables,1819Q03_PC00369
Sandwell Metropolitan Borough Council,http://www.sandwell.gov.uk/info/200202/performance_and_spending/3233/government_procurement_cards,26-Oct-2018,Housing & Communities,TESCO STORES 2335,Neighbourhoods,39,Catering Provisions,1819Q03_PC00370
Sandwell Metropolitan Borough Council,http://www.sandwell.gov.uk/info/200202/performance_and_spending/3233/government_procurement_cards,26-Oct-2018,Total Housing Revenue Account,AMZN Mktp UK MT8U11J44,Total Housing Revenue Account,100.76,ICT,1819Q03_PC00371
Sandwell Metropolitan Borough Council,http://www.sandwell.gov.uk/info/200202/performance_and_spending/3233/government_procurement_cards,26-Oct-2018,Housing & Communities,HOTELS.COM152817265994,Neighbourhoods,102.12,Supported Accommodation,1819Q03_PC00372
Sandwell Metropolitan Borough Council,http://www.sandwell.gov.uk/info/200202/performance_and_spending/3233/government_procurement_cards,26-Oct-2018,Childrens Services,B & M RETAIL,Childrens Services,21.65,Equipment & Furniture,1819Q03_PC00373
Sandwell Metropolitan Borough Council,http://www.sandwell.gov.uk/info/200202/performance_and_spending/3233/government_procurement_cards,26-Oct-2018,Housing & Communities,AMZN Mktp UK MT8Y82JW4,Neighbourhoods,5.99,Materials & Consumables,1819Q03_PC00374
Sandwell Metropolitan Borough Council,http://www.sandwell.gov.uk/info/200202/performance_and_spending/3233/government_procurement_cards,26-Oct-2018,Housing & Communities,TESCO STORES 5362,Neighbourhoods,7.2,Materials & Consumables,1819Q03_PC00375
Sandwell Metropolitan Borough Council,http://www.sandwell.gov.uk/info/200202/performance_and_spending/3233/government_procurement_cards,26-Oct-2018,Housing & Communities,TESCO STORES 5362,Neighbourhoods,15,Materials & Consumables,1819Q03_PC00376
Sandwell Metropolitan Borough Council,http://www.sandwell.gov.uk/info/200202/performance_and_spending/3233/government_procurement_cards,26-Oct-2018,Housing & Communities,TESCO STORES 5362,Neighbourhoods,15,Materials & Consumables,1819Q03_PC00377
Sandwell Metropolitan Borough Council,http://www.sandwell.gov.uk/info/200202/performance_and_spending/3233/government_procurement_cards,26-Oct-2018,Resources (Inc SIU),BILL@TRAVEL.CLOUD,Assistant Chief Executive (Excl SIU),125.2,Public Transport,1819Q03_PC00378
Sandwell Metropolitan Borough Council,http://www.sandwell.gov.uk/info/200202/performance_and_spending/3233/government_procurement_cards,26-Oct-2018,Resources (Inc SIU),BILL@TRAVEL.CLOUD,Assistant Chief Executive (Excl SIU),125.2,Public Transport,1819Q03_PC00379
Sandwell Metropolitan Borough Council,http://www.sandwell.gov.uk/info/200202/performance_and_spending/3233/government_procurement_cards,26-Oct-2018,Individual School Budgets With Inclusion,AMZN Mktp UK MT2138X74,Individual School Budgets With Inclusion,2.6,Materials & Consumables,1819Q03_PC00380
Sandwell Metropolitan Borough Council,http://www.sandwell.gov.uk/info/200202/performance_and_spending/3233/government_procurement_cards,29-Oct-2018,Childrens Services,OneDirect,Childrens Services,67.95,Equipment & Furniture,1819Q03_PC00381
Sandwell Metropolitan Borough Council,http://www.sandwell.gov.uk/info/200202/performance_and_spending/3233/government_procurement_cards,29-Oct-2018,Childrens Services,PAYPAL  INFO,Childrens Services,142.05,Equipment & Furniture,1819Q03_PC00382
Sandwell Metropolitan Borough Council,http://www.sandwell.gov.uk/info/200202/performance_and_spending/3233/government_procurement_cards,29-Oct-2018,Total Housing Revenue Account,AMZN Mktp UK MT8SH7V64,Total Housing Revenue Account,20.82,Telephones,1819Q03_PC00383
Sandwell Metropolitan Borough Council,http://www.sandwell.gov.uk/info/200202/performance_and_spending/3233/government_procurement_cards,29-Oct-2018,Total Housing Revenue Account,MIDTHERM ENGINEERING L,Total Housing Revenue Account,3161.07,R& M - Building Maint&Imp.,1819Q03_PC00384
Sandwell Metropolitan Borough Council,http://www.sandwell.gov.uk/info/200202/performance_and_spending/3233/government_procurement_cards,29-Oct-2018,Childrens Services,ASDA STORES LTD 5865,Childrens Services,4.77,Materials & Consumables,1819Q03_PC00385
Sandwell Metropolitan Borough Council,http://www.sandwell.gov.uk/info/200202/performance_and_spending/3233/government_procurement_cards,29-Oct-2018,Housing & Communities,VOLUMATIC LTD,Neighbourhoods,282.05,Equipment & Furniture,1819Q03_PC00386
Sandwell Metropolitan Borough Council,http://www.sandwell.gov.uk/info/200202/performance_and_spending/3233/government_procurement_cards,29-Oct-2018,Housing & Communities,Amazon.co.uk MT3CO1V34,Neighbourhoods,65.25,Equipment & Furniture,1819Q03_PC00387
Sandwell Metropolitan Borough Council,http://www.sandwell.gov.uk/info/200202/performance_and_spending/3233/government_procurement_cards,29-Oct-2018,Housing & Communities,Amazon.co.uk MT9CJ0VJ4,Neighbourhoods,98.2,Equipment & Furniture,1819Q03_PC00388
Sandwell Metropolitan Borough Council,http://www.sandwell.gov.uk/info/200202/performance_and_spending/3233/government_procurement_cards,29-Oct-2018,Housing & Communities,Amazon.co.uk MT7UA1VB4,Neighbourhoods,94.97,Equipment & Furniture,1819Q03_PC00389
Sandwell Metropolitan Borough Council,http://www.sandwell.gov.uk/info/200202/performance_and_spending/3233/government_procurement_cards,29-Oct-2018,Housing & Communities,REFLEX,Neighbourhoods,32.47,Civic Events,1819Q03_PC00390
Sandwell Metropolitan Borough Council,http://www.sandwell.gov.uk/info/200202/performance_and_spending/3233/government_procurement_cards,29-Oct-2018,Housing & Communities,AMZN MKTP UK MT14L8VQ4,Neighbourhoods,8.32,Printing Stationery&Gen Office,1819Q03_PC00391
Sandwell Metropolitan Borough Council,http://www.sandwell.gov.uk/info/200202/performance_and_spending/3233/government_procurement_cards,29-Oct-2018,Childrens Services,ASDA STORES LTD 5865,Childrens Services,2.58,Materials & Consumables,1819Q03_PC00392
Sandwell Metropolitan Borough Council,http://www.sandwell.gov.uk/info/200202/performance_and_spending/3233/government_procurement_cards,29-Oct-2018,Individual School Budgets With Inclusion,AMZN Mktp UK MT62V3XA4,Individual School Budgets With Inclusion,2.16,Printing Stationery&Gen Office,1819Q03_PC00393
Sandwell Metropolitan Borough Council,http://www.sandwell.gov.uk/info/200202/performance_and_spending/3233/government_procurement_cards,29-Oct-2018,Individual School Budgets With Inclusion,WWW.THEWORKS.CO.UK,Individual School Budgets With Inclusion,120,Printing Stationery&Gen Office,1819Q03_PC00394
Sandwell Metropolitan Borough Council,http://www.sandwell.gov.uk/info/200202/performance_and_spending/3233/government_procurement_cards,29-Oct-2018,Housing & Communities,EGGFREE CAKE BOX WEST,Neighbourhoods,40.99,Catering Provisions,1819Q03_PC00395
Sandwell Metropolitan Borough Council,http://www.sandwell.gov.uk/info/200202/performance_and_spending/3233/government_procurement_cards,29-Oct-2018,Corporate Management,Virgin Trains,Corporate Management,252.2,Public Transport,1819Q03_PC00396
Sandwell Metropolitan Borough Council,http://www.sandwell.gov.uk/info/200202/performance_and_spending/3233/government_procurement_cards,29-Oct-2018,Resources (Inc SIU),Virgin Trains,Assistant Chief Executive (Excl SIU),46,Public Transport,1819Q03_PC00397
Sandwell Metropolitan Borough Council,http://www.sandwell.gov.uk/info/200202/performance_and_spending/3233/government_procurement_cards,29-Oct-2018,Resources (Inc SIU),Virgin Trains,Assistant Chief Executive (Excl SIU),119.5,Public Transport,1819Q03_PC00398
Sandwell Metropolitan Borough Council,http://www.sandwell.gov.uk/info/200202/performance_and_spending/3233/government_procurement_cards,29-Oct-2018,Resources (Inc SIU),PREMIER INN,Assistant Chief Executive (Excl SIU),65.5,Conference Expenses,1819Q03_PC00399
Sandwell Metropolitan Borough Council,http://www.sandwell.gov.uk/info/200202/performance_and_spending/3233/government_procurement_cards,29-Oct-2018,Resources (Inc SIU),Amazon Prime MT2F88VY4,Assistant Chief Executive (Excl SIU),6.66,Subscriptions,1819Q03_PC00400
Sandwell Metropolitan Borough Council,http://www.sandwell.gov.uk/info/200202/performance_and_spending/3233/government_procurement_cards,29-Oct-2018,Housing & Communities,TESCO STORES 5362,Neighbourhoods,18.5,Materials & Consumables,1819Q03_PC00401
Sandwell Metropolitan Borough Council,http://www.sandwell.gov.uk/info/200202/performance_and_spending/3233/government_procurement_cards,29-Oct-2018,Housing & Communities,TESCO STORES 5362,Neighbourhoods,4.8,Materials & Consumables,1819Q03_PC00402
Sandwell Metropolitan Borough Council,http://www.sandwell.gov.uk/info/200202/performance_and_spending/3233/government_procurement_cards,29-Oct-2018,Housing & Communities,TESCO STORES 5362,Neighbourhoods,18,Materials & Consumables,1819Q03_PC00403
Sandwell Metropolitan Borough Council,http://www.sandwell.gov.uk/info/200202/performance_and_spending/3233/government_procurement_cards,29-Oct-2018,Adult Social Care Health and Wellbeing - Total,WWW.STAPLES.CO.UK,Total Adult Social Care,30.66,Printing Stationery&Gen Office,1819Q03_PC00404
Sandwell Metropolitan Borough Council,http://www.sandwell.gov.uk/info/200202/performance_and_spending/3233/government_procurement_cards,29-Oct-2018,Housing & Communities,GLOBAL WINES (BHAM) LT,Neighbourhoods,30.53,Catering Provisions,1819Q03_PC00405
Sandwell Metropolitan Borough Council,http://www.sandwell.gov.uk/info/200202/performance_and_spending/3233/government_procurement_cards,29-Oct-2018,Corporate Management,CHARLIES SWEET CENTRE,Corporate Management,20,Civic Events,1819Q03_PC00406
Sandwell Metropolitan Borough Council,http://www.sandwell.gov.uk/info/200202/performance_and_spending/3233/government_procurement_cards,29-Oct-2018,Total Housing Revenue Account,Amazon.co.uk MT77D95F4,Total Housing Revenue Account,19.97,Materials & Consumables,1819Q03_PC00407
Sandwell Metropolitan Borough Council,http://www.sandwell.gov.uk/info/200202/performance_and_spending/3233/government_procurement_cards,29-Oct-2018,Resources (Inc SIU),AMZN MKTP UK MT07A55J4,Assistant Chief Executive (Excl SIU),8.34,Printing Stationery&Gen Office,1819Q03_PC00408
Sandwell Metropolitan Borough Council,http://www.sandwell.gov.uk/info/200202/performance_and_spending/3233/government_procurement_cards,29-Oct-2018,Housing & Communities,TESCO STORES 6197,Neighbourhoods,12.58,Catering Provisions,1819Q03_PC00409
Sandwell Metropolitan Borough Council,http://www.sandwell.gov.uk/info/200202/performance_and_spending/3233/government_procurement_cards,29-Oct-2018,Housing & Communities,TESCO STORES 6197,Neighbourhoods,1.87,Catering Provisions,1819Q03_PC00410
Sandwell Metropolitan Borough Council,http://www.sandwell.gov.uk/info/200202/performance_and_spending/3233/government_procurement_cards,29-Oct-2018,Childrens Services,ASDA GROCERIES ONLINE,Childrens Services,28.1,Catering Provisions,1819Q03_PC00411
Sandwell Metropolitan Borough Council,http://www.sandwell.gov.uk/info/200202/performance_and_spending/3233/government_procurement_cards,29-Oct-2018,Individual School Budgets With Inclusion,AMZN Mktp UK MT2NB0504,Individual School Budgets With Inclusion,36.26,Printing Stationery&Gen Office,1819Q03_PC00412
Sandwell Metropolitan Borough Council,http://www.sandwell.gov.uk/info/200202/performance_and_spending/3233/government_procurement_cards,30-Oct-2018,Housing & Communities,SCREWFIX DIRECT,Neighbourhoods,179.97,Equipment & Furniture,1819Q03_PC00413
Sandwell Metropolitan Borough Council,http://www.sandwell.gov.uk/info/200202/performance_and_spending/3233/government_procurement_cards,30-Oct-2018,Childrens Services,POUNDLAND,Childrens Services,9.17,Materials & Consumables,1819Q03_PC00414
Sandwell Metropolitan Borough Council,http://www.sandwell.gov.uk/info/200202/performance_and_spending/3233/government_procurement_cards,30-Oct-2018,Housing & Communities,HIE OLDBURY,Neighbourhoods,149.14,Operational Services,1819Q03_PC00415
Sandwell Metropolitan Borough Council,http://www.sandwell.gov.uk/info/200202/performance_and_spending/3233/government_procurement_cards,30-Oct-2018,Housing & Communities,TRAVELODGE,Neighbourhoods,64.17,Operational Services,1819Q03_PC00416
Sandwell Metropolitan Borough Council,http://www.sandwell.gov.uk/info/200202/performance_and_spending/3233/government_procurement_cards,30-Oct-2018,Housing & Communities,WWW.DZD.CO.UK,Neighbourhoods,72.91,Materials & Consumables,1819Q03_PC00417
Sandwell Metropolitan Borough Council,http://www.sandwell.gov.uk/info/200202/performance_and_spending/3233/government_procurement_cards,30-Oct-2018,Total Housing Revenue Account,Amazon.co.uk MT5111HJ4,Total Housing Revenue Account,92.22,Materials & Consumables,1819Q03_PC00418
Sandwell Metropolitan Borough Council,http://www.sandwell.gov.uk/info/200202/performance_and_spending/3233/government_procurement_cards,30-Oct-2018,Childrens Services,POST OFFICE COUNTER,Childrens Services,7.3,"Postages, Carriage & Courier Services",1819Q03_PC00419
Sandwell Metropolitan Borough Council,http://www.sandwell.gov.uk/info/200202/performance_and_spending/3233/government_procurement_cards,30-Oct-2018,Adult Social Care Health and Wellbeing - Total,Trainline,Total Adult Social Care,244.75,Public Transport,1819Q03_PC00420
Sandwell Metropolitan Borough Council,http://www.sandwell.gov.uk/info/200202/performance_and_spending/3233/government_procurement_cards,30-Oct-2018,Housing & Communities,ASDA STORES 4274,Neighbourhoods,1.3,Catering Provisions,1819Q03_PC00421
Sandwell Metropolitan Borough Council,http://www.sandwell.gov.uk/info/200202/performance_and_spending/3233/government_procurement_cards,30-Oct-2018,Housing & Communities,Trainline,Neighbourhoods,-3,Public Transport,1819Q03_PC00422
Sandwell Metropolitan Borough Council,http://www.sandwell.gov.uk/info/200202/performance_and_spending/3233/government_procurement_cards,31-Oct-2018,Resources (Inc SIU),DRI Lenovo,Assistant Chief Executive (Excl SIU),60,ICT,1819Q03_PC00423
Sandwell Metropolitan Borough Council,http://www.sandwell.gov.uk/info/200202/performance_and_spending/3233/government_procurement_cards,31-Oct-2018,Regeneration & Growth,WWW.OFFICEFURNITUREONL,Regeneration And The Economy,117,Equipment & Furniture,1819Q03_PC00424
Sandwell Metropolitan Borough Council,http://www.sandwell.gov.uk/info/200202/performance_and_spending/3233/government_procurement_cards,31-Oct-2018,Childrens Services,ASDA STORES LTD 5865,Childrens Services,0.07,Materials & Consumables,1819Q03_PC00425
Sandwell Metropolitan Borough Council,http://www.sandwell.gov.uk/info/200202/performance_and_spending/3233/government_procurement_cards,31-Oct-2018,Housing & Communities,AMZN Mktp UK MT1699QU4,Neighbourhoods,12.91,Equipment & Furniture,1819Q03_PC00426
Sandwell Metropolitan Borough Council,http://www.sandwell.gov.uk/info/200202/performance_and_spending/3233/government_procurement_cards,31-Oct-2018,Housing & Communities,SCREWFIX DIRECT,Neighbourhoods,133.32,Equipment & Furniture,1819Q03_PC00427
Sandwell Metropolitan Borough Council,http://www.sandwell.gov.uk/info/200202/performance_and_spending/3233/government_procurement_cards,31-Oct-2018,Total Housing Revenue Account,AMZN Mktp UK MT5EF38Y4,Total Housing Revenue Account,16.66,Telephones,1819Q03_PC00428
Sandwell Metropolitan Borough Council,http://www.sandwell.gov.uk/info/200202/performance_and_spending/3233/government_procurement_cards,31-Oct-2018,Total Housing Revenue Account,AMZN Mktp UK MT9E608V4,Total Housing Revenue Account,16.66,Telephones,1819Q03_PC00429
Sandwell Metropolitan Borough Council,http://www.sandwell.gov.uk/info/200202/performance_and_spending/3233/government_procurement_cards,31-Oct-2018,Childrens Services,HOMEBASE LTD 085,Childrens Services,7.92,Ind. Emp Exp-Emp. Welfare,1819Q03_PC00430
Sandwell Metropolitan Borough Council,http://www.sandwell.gov.uk/info/200202/performance_and_spending/3233/government_procurement_cards,31-Oct-2018,Individual School Budgets With Inclusion,C-MOS TECHNOLOGY LTD,Individual School Budgets With Inclusion,291.67,Equipment & Furniture,1819Q03_PC00431
Sandwell Metropolitan Borough Council,http://www.sandwell.gov.uk/info/200202/performance_and_spending/3233/government_procurement_cards,31-Oct-2018,Childrens Services,ASDA STORES LTD 5865,Childrens Services,20.3,Materials & Consumables,1819Q03_PC00432
Sandwell Metropolitan Borough Council,http://www.sandwell.gov.uk/info/200202/performance_and_spending/3233/government_procurement_cards,31-Oct-2018,Resources (Inc SIU),Virgin Trains,Assistant Chief Executive (Excl SIU),44.7,Public Transport,1819Q03_PC00433
Sandwell Metropolitan Borough Council,http://www.sandwell.gov.uk/info/200202/performance_and_spending/3233/government_procurement_cards,31-Oct-2018,Resources (Inc SIU),SANDWELL & DUD T/O,Assistant Chief Executive (Excl SIU),176,Ind. Emp Exp-Staff Dev&Training,1819Q03_PC00434
Sandwell Metropolitan Borough Council,http://www.sandwell.gov.uk/info/200202/performance_and_spending/3233/government_procurement_cards,31-Oct-2018,Housing & Communities,Amazon.co.uk MT1GK3Q34,Neighbourhoods,38.32,Materials & Consumables,1819Q03_PC00435
Sandwell Metropolitan Borough Council,http://www.sandwell.gov.uk/info/200202/performance_and_spending/3233/government_procurement_cards,31-Oct-2018,Housing & Communities,CHRISTMAS TREE WORLD,Neighbourhoods,250,Fixtures & Fittings,1819Q03_PC00436
Sandwell Metropolitan Borough Council,http://www.sandwell.gov.uk/info/200202/performance_and_spending/3233/government_procurement_cards,31-Oct-2018,Housing & Communities,CHRISTMAS TREE WORLD,Neighbourhoods,124.99,Fixtures & Fittings,1819Q03_PC00437
Sandwell Metropolitan Borough Council,http://www.sandwell.gov.uk/info/200202/performance_and_spending/3233/government_procurement_cards,31-Oct-2018,Childrens Services,B & Q 1169,Childrens Services,31.67,Equipment & Furniture,1819Q03_PC00438
Sandwell Metropolitan Borough Council,http://www.sandwell.gov.uk/info/200202/performance_and_spending/3233/government_procurement_cards,31-Oct-2018,Regeneration & Growth,Trainline,Regeneration And The Economy,6.05,Public Transport,1819Q03_PC00439
Sandwell Metropolitan Borough Council,http://www.sandwell.gov.uk/info/200202/performance_and_spending/3233/government_procurement_cards,01-Nov-2018,Total Housing Revenue Account,STAFFORDSHIRE BLDS SUP,Total Housing Revenue Account,20.8,Materials & Consumables,1819Q03_PC00440
Sandwell Metropolitan Borough Council,http://www.sandwell.gov.uk/info/200202/performance_and_spending/3233/government_procurement_cards,01-Nov-2018,Housing & Communities,TRAVELODGE,Neighbourhoods,388.33,Operational Services,1819Q03_PC00441
Sandwell Metropolitan Borough Council,http://www.sandwell.gov.uk/info/200202/performance_and_spending/3233/government_procurement_cards,01-Nov-2018,Regeneration & Growth,AMZN Mktp UK MT76X86R4,Regeneration And The Economy,16.23,ICT,1819Q03_PC00442
Sandwell Metropolitan Borough Council,http://www.sandwell.gov.uk/info/200202/performance_and_spending/3233/government_procurement_cards,01-Nov-2018,Housing & Communities,Amazon.co.uk MT7CE7D94,Neighbourhoods,21.6,Equipment & Furniture,1819Q03_PC00443
Sandwell Metropolitan Borough Council,http://www.sandwell.gov.uk/info/200202/performance_and_spending/3233/government_procurement_cards,01-Nov-2018,Housing & Communities,ASDA STORES 4274,Neighbourhoods,1.17,Catering Provisions,1819Q03_PC00444
Sandwell Metropolitan Borough Council,http://www.sandwell.gov.uk/info/200202/performance_and_spending/3233/government_procurement_cards,01-Nov-2018,Childrens Services,Virgin Trains,Childrens Services,-53.7,Public Transport,1819Q03_PC00445
Sandwell Metropolitan Borough Council,http://www.sandwell.gov.uk/info/200202/performance_and_spending/3233/government_procurement_cards,01-Nov-2018,Childrens Services,Virgin Trains,Childrens Services,-53.7,Public Transport,1819Q03_PC00446
Sandwell Metropolitan Borough Council,http://www.sandwell.gov.uk/info/200202/performance_and_spending/3233/government_procurement_cards,01-Nov-2018,Housing & Communities,Trainline,Neighbourhoods,-113.2,Public Transport,1819Q03_PC00447
Sandwell Metropolitan Borough Council,http://www.sandwell.gov.uk/info/200202/performance_and_spending/3233/government_procurement_cards,01-Nov-2018,Childrens Services,ASDA STORES LTD 5865,Childrens Services,4.15,Materials & Consumables,1819Q03_PC00448
Sandwell Metropolitan Borough Council,http://www.sandwell.gov.uk/info/200202/performance_and_spending/3233/government_procurement_cards,01-Nov-2018,Resources (Inc SIU),ASDA STORE,Assistant Chief Executive (Excl SIU),10,Materials & Consumables,1819Q03_PC00449
Sandwell Metropolitan Borough Council,http://www.sandwell.gov.uk/info/200202/performance_and_spending/3233/government_procurement_cards,01-Nov-2018,Housing & Communities,Trainline,Neighbourhoods,114.7,Public Transport,1819Q03_PC00450
Sandwell Metropolitan Borough Council,http://www.sandwell.gov.uk/info/200202/performance_and_spending/3233/government_procurement_cards,01-Nov-2018,Resources (Inc SIU),AMZN MKTP UK MT6NM5624,Assistant Chief Executive (Excl SIU),9.75,ICT,1819Q03_PC00451
Sandwell Metropolitan Borough Council,http://www.sandwell.gov.uk/info/200202/performance_and_spending/3233/government_procurement_cards,01-Nov-2018,Adult Social Care Health and Wellbeing - Total,J R WOODISSE & CO LTD,Total Adult Social Care,51.67,Equipment & Furniture,1819Q03_PC00452
Sandwell Metropolitan Borough Council,http://www.sandwell.gov.uk/info/200202/performance_and_spending/3233/government_procurement_cards,01-Nov-2018,Childrens Services,ASDA,Childrens Services,7.78,Equipment & Furniture,1819Q03_PC00453
Sandwell Metropolitan Borough Council,http://www.sandwell.gov.uk/info/200202/performance_and_spending/3233/government_procurement_cards,01-Nov-2018,Childrens Services,DUNELM LTD,Childrens Services,28.33,Equipment & Furniture,1819Q03_PC00454
Sandwell Metropolitan Borough Council,http://www.sandwell.gov.uk/info/200202/performance_and_spending/3233/government_procurement_cards,01-Nov-2018,Resources (Inc SIU),TAILORED SOLUTIONS,Assistant Chief Executive (Excl SIU),30,Equipment & Furniture,1819Q03_PC00455
Sandwell Metropolitan Borough Council,http://www.sandwell.gov.uk/info/200202/performance_and_spending/3233/government_procurement_cards,01-Nov-2018,Housing & Communities,Trainline,Neighbourhoods,167.64,Public Transport,1819Q03_PC00456
Sandwell Metropolitan Borough Council,http://www.sandwell.gov.uk/info/200202/performance_and_spending/3233/government_procurement_cards,02-Nov-2018,Housing & Communities,SCREWFIX WEST BROMWICH,Neighbourhoods,-149.98,Equipment & Furniture,1819Q03_PC00457
Sandwell Metropolitan Borough Council,http://www.sandwell.gov.uk/info/200202/performance_and_spending/3233/government_procurement_cards,02-Nov-2018,Childrens Services,THE RANGE,Childrens Services,119.96,Equipment & Furniture,1819Q03_PC00458
Sandwell Metropolitan Borough Council,http://www.sandwell.gov.uk/info/200202/performance_and_spending/3233/government_procurement_cards,02-Nov-2018,Housing & Communities,ALDI 79 772,Neighbourhoods,5.96,Materials & Consumables,1819Q03_PC00459
Sandwell Metropolitan Borough Council,http://www.sandwell.gov.uk/info/200202/performance_and_spending/3233/government_procurement_cards,02-Nov-2018,Resources (Inc SIU),HOMEBASE LTD 085,Assistant Chief Executive (Excl SIU),9.3,Materials & Consumables,1819Q03_PC00460
Sandwell Metropolitan Borough Council,http://www.sandwell.gov.uk/info/200202/performance_and_spending/3233/government_procurement_cards,02-Nov-2018,Resources Capital,DRI Lenovo,Resources Capital,-75,ICT,1819Q03_PC00461
Sandwell Metropolitan Borough Council,http://www.sandwell.gov.uk/info/200202/performance_and_spending/3233/government_procurement_cards,02-Nov-2018,Individual School Budgets With Inclusion,WWW.STAPLES.CO.UK,Individual School Budgets With Inclusion,148.92,Equipment & Furniture,1819Q03_PC00462
Sandwell Metropolitan Borough Council,http://www.sandwell.gov.uk/info/200202/performance_and_spending/3233/government_procurement_cards,02-Nov-2018,Adult Social Care Health and Wellbeing - Total,WWW.STAPLES.CO.UK,Total Adult Social Care,260.5,Equipment & Furniture,1819Q03_PC00463
Sandwell Metropolitan Borough Council,http://www.sandwell.gov.uk/info/200202/performance_and_spending/3233/government_procurement_cards,02-Nov-2018,Corporate Management,TAXI FARE BY VERIFONE,Corporate Management,11.27,Public Transport,1819Q03_PC00464
Sandwell Metropolitan Borough Council,http://www.sandwell.gov.uk/info/200202/performance_and_spending/3233/government_procurement_cards,02-Nov-2018,Childrens Services,POST OFFICE COUNTER,Childrens Services,6.5,"Postages, Carriage & Courier Services",1819Q03_PC00465
Sandwell Metropolitan Borough Council,http://www.sandwell.gov.uk/info/200202/performance_and_spending/3233/government_procurement_cards,02-Nov-2018,Corporate Management,CMT UK LTD TAXI FARE,Corporate Management,30.4,Public Transport,1819Q03_PC00466
Sandwell Metropolitan Borough Council,http://www.sandwell.gov.uk/info/200202/performance_and_spending/3233/government_procurement_cards,02-Nov-2018,Resources (Inc SIU),PAYPAL  WEIYULING,Assistant Chief Executive (Excl SIU),11.87,Equipment & Furniture,1819Q03_PC00467
Sandwell Metropolitan Borough Council,http://www.sandwell.gov.uk/info/200202/performance_and_spending/3233/government_procurement_cards,02-Nov-2018,Housing & Communities,SCREWFIX DIRECT,Neighbourhoods,20.5,Equipment & Furniture,1819Q03_PC00468
Sandwell Metropolitan Borough Council,http://www.sandwell.gov.uk/info/200202/performance_and_spending/3233/government_procurement_cards,02-Nov-2018,Housing & Communities,SCREWFIX WEST BROMWICH,Neighbourhoods,31.65,Equipment & Furniture,1819Q03_PC00469
Sandwell Metropolitan Borough Council,http://www.sandwell.gov.uk/info/200202/performance_and_spending/3233/government_procurement_cards,02-Nov-2018,Childrens Services,MAG EVENTS,Childrens Services,-37.2,Conference Expenses,1819Q03_PC00470
Sandwell Metropolitan Borough Council,http://www.sandwell.gov.uk/info/200202/performance_and_spending/3233/government_procurement_cards,02-Nov-2018,Regeneration & Growth,OU CONTINUING ED,Regeneration And The Economy,-216,Conference Expenses,1819Q03_PC00471
Sandwell Metropolitan Borough Council,http://www.sandwell.gov.uk/info/200202/performance_and_spending/3233/government_procurement_cards,02-Nov-2018,Resources (Inc SIU),ARGOS OLDBURY,Assistant Chief Executive (Excl SIU),33.98,Materials & Consumables,1819Q03_PC00472
Sandwell Metropolitan Borough Council,http://www.sandwell.gov.uk/info/200202/performance_and_spending/3233/government_procurement_cards,02-Nov-2018,Total Housing Revenue Account,JAMES LISTER & SONS LT,Total Housing Revenue Account,138.33,Equipment & Furniture,1819Q03_PC00473
Sandwell Metropolitan Borough Council,http://www.sandwell.gov.uk/info/200202/performance_and_spending/3233/government_procurement_cards,02-Nov-2018,Total Housing Revenue Account,JAMES LISTER & SONS LT,Total Housing Revenue Account,138.34,Equipment & Furniture,1819Q03_PC00474
Sandwell Metropolitan Borough Council,http://www.sandwell.gov.uk/info/200202/performance_and_spending/3233/government_procurement_cards,02-Nov-2018,Resources (Inc SIU),Amazon.co.uk MT2U69SH4,Assistant Chief Executive (Excl SIU),35.96,Ind. Emp Exp-Staff Dev&Training,1819Q03_PC00475
Sandwell Metropolitan Borough Council,http://www.sandwell.gov.uk/info/200202/performance_and_spending/3233/government_procurement_cards,02-Nov-2018,Housing & Communities,AMZN MKTP UK MT0M55S24,Neighbourhoods,4.6,Materials & Consumables,1819Q03_PC00476
Sandwell Metropolitan Borough Council,http://www.sandwell.gov.uk/info/200202/performance_and_spending/3233/government_procurement_cards,02-Nov-2018,Resources (Inc SIU),Amazon Prime MT9Q55DU4,Assistant Chief Executive (Excl SIU),6.66,Subscriptions,1819Q03_PC00477
Sandwell Metropolitan Borough Council,http://www.sandwell.gov.uk/info/200202/performance_and_spending/3233/government_procurement_cards,05-Nov-2018,Total Housing Revenue Account,INTUMESCENT SYSTEM,Total Housing Revenue Account,448.72,Materials & Consumables,1819Q03_PC00478
Sandwell Metropolitan Borough Council,http://www.sandwell.gov.uk/info/200202/performance_and_spending/3233/government_procurement_cards,05-Nov-2018,Resources Capital,DRI Lenovo,Resources Capital,-75,ICT,1819Q03_PC00479
Sandwell Metropolitan Borough Council,http://www.sandwell.gov.uk/info/200202/performance_and_spending/3233/government_procurement_cards,05-Nov-2018,Housing & Communities,ASDA SUPERSTORE,Neighbourhoods,38.67,Equipment & Furniture,1819Q03_PC00480
Sandwell Metropolitan Borough Council,http://www.sandwell.gov.uk/info/200202/performance_and_spending/3233/government_procurement_cards,05-Nov-2018,Housing & Communities,SCREWFIX DIRECT,Neighbourhoods,9.98,Equipment & Furniture,1819Q03_PC00481
Sandwell Metropolitan Borough Council,http://www.sandwell.gov.uk/info/200202/performance_and_spending/3233/government_procurement_cards,05-Nov-2018,Adult Social Care Health and Wellbeing - Total,HOTELS.COM153028594328,Total Adult Social Care,138.33,Conference Expenses,1819Q03_PC00482
Sandwell Metropolitan Borough Council,http://www.sandwell.gov.uk/info/200202/performance_and_spending/3233/government_procurement_cards,05-Nov-2018,Total Housing Revenue Account,Trainline,Total Housing Revenue Account,157.9,Public Transport,1819Q03_PC00483
Sandwell Metropolitan Borough Council,http://www.sandwell.gov.uk/info/200202/performance_and_spending/3233/government_procurement_cards,05-Nov-2018,Housing & Communities,Amazon.co.uk MT4KX2SI4,Neighbourhoods,8.89,Catering Provisions,1819Q03_PC00484
Sandwell Metropolitan Borough Council,http://www.sandwell.gov.uk/info/200202/performance_and_spending/3233/government_procurement_cards,05-Nov-2018,Housing & Communities,Amazon.co.uk MT7B642S4,Neighbourhoods,11.74,Materials & Consumables,1819Q03_PC00485
Sandwell Metropolitan Borough Council,http://www.sandwell.gov.uk/info/200202/performance_and_spending/3233/government_procurement_cards,05-Nov-2018,Resources (Inc SIU),WWW.POPPYLOTTERY.SAFEA,Assistant Chief Executive (Excl SIU),170,Materials & Consumables,1819Q03_PC00486
Sandwell Metropolitan Borough Council,http://www.sandwell.gov.uk/info/200202/performance_and_spending/3233/government_procurement_cards,05-Nov-2018,Adult Social Care Health and Wellbeing - Total,Trainline,Total Adult Social Care,186.44,Public Transport,1819Q03_PC00487
Sandwell Metropolitan Borough Council,http://www.sandwell.gov.uk/info/200202/performance_and_spending/3233/government_procurement_cards,05-Nov-2018,Resources (Inc SIU),Trainline,Assistant Chief Executive (Excl SIU),186.44,Public Transport,1819Q03_PC00488
Sandwell Metropolitan Borough Council,http://www.sandwell.gov.uk/info/200202/performance_and_spending/3233/government_procurement_cards,05-Nov-2018,Adult Social Care Health and Wellbeing - Total,DIGITAL EXCHANGE PRODU,Total Adult Social Care,-66,Telephones,1819Q03_PC00489
Sandwell Metropolitan Borough Council,http://www.sandwell.gov.uk/info/200202/performance_and_spending/3233/government_procurement_cards,05-Nov-2018,Adult Social Care Health and Wellbeing - Total,Trainline,Total Adult Social Care,7.37,Public Transport,1819Q03_PC00490
Sandwell Metropolitan Borough Council,http://www.sandwell.gov.uk/info/200202/performance_and_spending/3233/government_procurement_cards,05-Nov-2018,Resources (Inc SIU),GOOGLE  CLOUD_01B69F-A,Assistant Chief Executive (Excl SIU),79.41,ICT,1819Q03_PC00491
Sandwell Metropolitan Borough Council,http://www.sandwell.gov.uk/info/200202/performance_and_spending/3233/government_procurement_cards,05-Nov-2018,Housing & Communities,Amazon.co.uk MT5UH97M4,Neighbourhoods,10,Materials & Consumables,1819Q03_PC00492
Sandwell Metropolitan Borough Council,http://www.sandwell.gov.uk/info/200202/performance_and_spending/3233/government_procurement_cards,05-Nov-2018,Resources (Inc SIU),AMZN Mktp UK MT6V34764,Assistant Chief Executive (Excl SIU),12.74,Printing Stationery&Gen Office,1819Q03_PC00493
Sandwell Metropolitan Borough Council,http://www.sandwell.gov.uk/info/200202/performance_and_spending/3233/government_procurement_cards,05-Nov-2018,Adult Social Care Health and Wellbeing - Total,AMZN Mktp UK MT8RW47H4,Total Adult Social Care,12.07,Equipment & Furniture,1819Q03_PC00494
Sandwell Metropolitan Borough Council,http://www.sandwell.gov.uk/info/200202/performance_and_spending/3233/government_procurement_cards,06-Nov-2018,Housing & Communities,Amazon Prime MT29V5UA4,Neighbourhoods,6.66,"Postages, Carriage & Courier Services",1819Q03_PC00495
Sandwell Metropolitan Borough Council,http://www.sandwell.gov.uk/info/200202/performance_and_spending/3233/government_procurement_cards,06-Nov-2018,Total Housing Revenue Account,AMZN Mktp UK MT4F87UO4,Total Housing Revenue Account,16.25,Printing Stationery&Gen Office,1819Q03_PC00496
Sandwell Metropolitan Borough Council,http://www.sandwell.gov.uk/info/200202/performance_and_spending/3233/government_procurement_cards,06-Nov-2018,Childrens Services,BAKER ROSS,Childrens Services,14.32,Printing Stationery&Gen Office,1819Q03_PC00497
Sandwell Metropolitan Borough Council,http://www.sandwell.gov.uk/info/200202/performance_and_spending/3233/government_procurement_cards,06-Nov-2018,Regeneration & Growth,WWW.DIGITALPRINTING.CO,Regeneration And The Economy,35.95,Advertising & Publicity,1819Q03_PC00498
Sandwell Metropolitan Borough Council,http://www.sandwell.gov.uk/info/200202/performance_and_spending/3233/government_procurement_cards,06-Nov-2018,Housing & Communities,TRAVELODGE,Neighbourhoods,47.5,Operational Services,1819Q03_PC00499
Sandwell Metropolitan Borough Council,http://www.sandwell.gov.uk/info/200202/performance_and_spending/3233/government_procurement_cards,06-Nov-2018,Childrens Services,ASDA,Childrens Services,6.25,Catering Provisions,1819Q03_PC00500
Sandwell Metropolitan Borough Council,http://www.sandwell.gov.uk/info/200202/performance_and_spending/3233/government_procurement_cards,06-Nov-2018,Childrens Services,ASDA,Childrens Services,55.98,Catering Provisions,1819Q03_PC00501
Sandwell Metropolitan Borough Council,http://www.sandwell.gov.uk/info/200202/performance_and_spending/3233/government_procurement_cards,06-Nov-2018,Resources (Inc SIU),Amazon.co.uk MT1YB7UK4,Assistant Chief Executive (Excl SIU),19.92,Printing Stationery&Gen Office,1819Q03_PC00502
Sandwell Metropolitan Borough Council,http://www.sandwell.gov.uk/info/200202/performance_and_spending/3233/government_procurement_cards,07-Nov-2018,Resources (Inc SIU),Cross Country Trains,Assistant Chief Executive (Excl SIU),-113.8,Public Transport,1819Q03_PC00503
Sandwell Metropolitan Borough Council,http://www.sandwell.gov.uk/info/200202/performance_and_spending/3233/government_procurement_cards,07-Nov-2018,Housing & Communities,POUNDLAND 1509,Neighbourhoods,8.37,Catering Provisions,1819Q03_PC00504
Sandwell Metropolitan Borough Council,http://www.sandwell.gov.uk/info/200202/performance_and_spending/3233/government_procurement_cards,07-Nov-2018,Housing & Communities,W V HOWE LTD,Neighbourhoods,381.44,Catering Equipment,1819Q03_PC00505
Sandwell Metropolitan Borough Council,http://www.sandwell.gov.uk/info/200202/performance_and_spending/3233/government_procurement_cards,07-Nov-2018,Housing & Communities,AQUAID FRANCHISING LTD,Neighbourhoods,25,Catering Provisions,1819Q03_PC00506
Sandwell Metropolitan Borough Council,http://www.sandwell.gov.uk/info/200202/performance_and_spending/3233/government_procurement_cards,07-Nov-2018,Housing & Communities,AMZN MKTP UK MT5G28ID4,Neighbourhoods,20.55,Catering Provisions,1819Q03_PC00507
Sandwell Metropolitan Borough Council,http://www.sandwell.gov.uk/info/200202/performance_and_spending/3233/government_procurement_cards,07-Nov-2018,Total Housing Revenue Account,AMZN Mktp UK MT7K50IA4,Total Housing Revenue Account,5.72,Printing Stationery&Gen Office,1819Q03_PC00508
Sandwell Metropolitan Borough Council,http://www.sandwell.gov.uk/info/200202/performance_and_spending/3233/government_procurement_cards,07-Nov-2018,Total Housing Revenue Account,AMZN Mktp UK MT3HY0IF4,Total Housing Revenue Account,27.57,Printing Stationery&Gen Office,1819Q03_PC00509
Sandwell Metropolitan Borough Council,http://www.sandwell.gov.uk/info/200202/performance_and_spending/3233/government_procurement_cards,07-Nov-2018,Resources (Inc SIU),MASTA LTD,Assistant Chief Executive (Excl SIU),10.58,Professional Services External,1819Q03_PC00510
Sandwell Metropolitan Borough Council,http://www.sandwell.gov.uk/info/200202/performance_and_spending/3233/government_procurement_cards,07-Nov-2018,Total Housing Revenue Account,AMZN Mktp UK MT6W06R04,Total Housing Revenue Account,27.57,Printing Stationery&Gen Office,1819Q03_PC00511
Sandwell Metropolitan Borough Council,http://www.sandwell.gov.uk/info/200202/performance_and_spending/3233/government_procurement_cards,07-Nov-2018,Total Housing Revenue Account,AMZN Mktp UK MT6VW1RL4,Total Housing Revenue Account,19.83,Printing Stationery&Gen Office,1819Q03_PC00512
Sandwell Metropolitan Borough Council,http://www.sandwell.gov.uk/info/200202/performance_and_spending/3233/government_procurement_cards,07-Nov-2018,Total Housing Revenue Account,MACHINE MART WEB,Total Housing Revenue Account,87.15,Materials & Consumables,1819Q03_PC00513
Sandwell Metropolitan Borough Council,http://www.sandwell.gov.uk/info/200202/performance_and_spending/3233/government_procurement_cards,07-Nov-2018,Corporate Management,TESCO STORES 6197,Corporate Management,-6,Civic Events,1819Q03_PC00514
Sandwell Metropolitan Borough Council,http://www.sandwell.gov.uk/info/200202/performance_and_spending/3233/government_procurement_cards,07-Nov-2018,Childrens Services,ASDA GROCERIES ONLINE,Childrens Services,-0.49,Catering Provisions,1819Q03_PC00515
Sandwell Metropolitan Borough Council,http://www.sandwell.gov.uk/info/200202/performance_and_spending/3233/government_procurement_cards,07-Nov-2018,Childrens Services,ASDA GROCERIES ONLINE,Childrens Services,35.43,Catering Provisions,1819Q03_PC00516
Sandwell Metropolitan Borough Council,http://www.sandwell.gov.uk/info/200202/performance_and_spending/3233/government_procurement_cards,07-Nov-2018,Corporate Management,TESCO STORES 6197,Corporate Management,155,Civic Events,1819Q03_PC00517
Sandwell Metropolitan Borough Council,http://www.sandwell.gov.uk/info/200202/performance_and_spending/3233/government_procurement_cards,07-Nov-2018,Resources (Inc SIU),HMCOURTS-SERVICE.G,Assistant Chief Executive (Excl SIU),50.5,Council Tax,1819Q03_PC00518
Sandwell Metropolitan Borough Council,http://www.sandwell.gov.uk/info/200202/performance_and_spending/3233/government_procurement_cards,07-Nov-2018,Housing & Communities,ALDI 9 772,Neighbourhoods,4.02,Catering Provisions,1819Q03_PC00519
Sandwell Metropolitan Borough Council,http://www.sandwell.gov.uk/info/200202/performance_and_spending/3233/government_procurement_cards,07-Nov-2018,Resources (Inc SIU),WWW.1ST4SPORT.COM,Assistant Chief Executive (Excl SIU),51.49,Materials & Consumables,1819Q03_PC00520
Sandwell Metropolitan Borough Council,http://www.sandwell.gov.uk/info/200202/performance_and_spending/3233/government_procurement_cards,07-Nov-2018,Housing & Communities,TRAVELODGE,Neighbourhoods,385.83,Operational Services,1819Q03_PC00521
Sandwell Metropolitan Borough Council,http://www.sandwell.gov.uk/info/200202/performance_and_spending/3233/government_procurement_cards,07-Nov-2018,Childrens Services,BIRMINGHAM HIPPODROME,Childrens Services,250,Civic Events,1819Q03_PC00522
Sandwell Metropolitan Borough Council,http://www.sandwell.gov.uk/info/200202/performance_and_spending/3233/government_procurement_cards,07-Nov-2018,Childrens Services,BIRMINGHAM HIPPODROME,Childrens Services,15.5,Civic Events,1819Q03_PC00523
Sandwell Metropolitan Borough Council,http://www.sandwell.gov.uk/info/200202/performance_and_spending/3233/government_procurement_cards,07-Nov-2018,Housing & Communities,WEST COAST TRAINS,Neighbourhoods,10,Car Parking,1819Q03_PC00524
Sandwell Metropolitan Borough Council,http://www.sandwell.gov.uk/info/200202/performance_and_spending/3233/government_procurement_cards,07-Nov-2018,Housing & Communities,SANDWELL & DUD T/O,Neighbourhoods,3.9,Public Transport,1819Q03_PC00525
Sandwell Metropolitan Borough Council,http://www.sandwell.gov.uk/info/200202/performance_and_spending/3233/government_procurement_cards,08-Nov-2018,Adult Social Care Health and Wellbeing - Total,Trainline,Total Adult Social Care,139.4,Public Transport,1819Q03_PC00526
Sandwell Metropolitan Borough Council,http://www.sandwell.gov.uk/info/200202/performance_and_spending/3233/government_procurement_cards,08-Nov-2018,Housing & Communities,THE NEC,Neighbourhoods,13.33,Car Parking,1819Q03_PC00527
Sandwell Metropolitan Borough Council,http://www.sandwell.gov.uk/info/200202/performance_and_spending/3233/government_procurement_cards,08-Nov-2018,Total Housing Revenue Account,AMZN Mktp UK MT60J1WR4,Total Housing Revenue Account,3.07,Printing Stationery&Gen Office,1819Q03_PC00528
Sandwell Metropolitan Borough Council,http://www.sandwell.gov.uk/info/200202/performance_and_spending/3233/government_procurement_cards,08-Nov-2018,Total Housing Revenue Account,AMZN Mktp UK MT50O0W24,Total Housing Revenue Account,3.07,Printing Stationery&Gen Office,1819Q03_PC00529
Sandwell Metropolitan Borough Council,http://www.sandwell.gov.uk/info/200202/performance_and_spending/3233/government_procurement_cards,08-Nov-2018,Total Housing Revenue Account,AMZN Mktp UK MT90V9W24,Total Housing Revenue Account,3.06,Printing Stationery&Gen Office,1819Q03_PC00530
Sandwell Metropolitan Borough Council,http://www.sandwell.gov.uk/info/200202/performance_and_spending/3233/government_procurement_cards,08-Nov-2018,Total Housing Revenue Account,AMZN Mktp UK MT7012WM4,Total Housing Revenue Account,3.07,Printing Stationery&Gen Office,1819Q03_PC00531
Sandwell Metropolitan Borough Council,http://www.sandwell.gov.uk/info/200202/performance_and_spending/3233/government_procurement_cards,08-Nov-2018,Housing & Communities,ARGOS OLDBURY,Neighbourhoods,20.82,Operational Services,1819Q03_PC00532
Sandwell Metropolitan Borough Council,http://www.sandwell.gov.uk/info/200202/performance_and_spending/3233/government_procurement_cards,08-Nov-2018,Regeneration & Growth,cadent gas,Regeneration And The Economy,1111,Energy Costs-Gas,1819Q03_PC00533
Sandwell Metropolitan Borough Council,http://www.sandwell.gov.uk/info/200202/performance_and_spending/3233/government_procurement_cards,08-Nov-2018,Childrens Services,Allpay  GRWP CYNEFIN,Childrens Services,50,Ind. Emp Exp-Staff Dev&Training,1819Q03_PC00534
Sandwell Metropolitan Borough Council,http://www.sandwell.gov.uk/info/200202/performance_and_spending/3233/government_procurement_cards,08-Nov-2018,Regeneration & Growth,WILKO RETAIL LIMIT,Regeneration And The Economy,6.25,Equipment & Furniture,1819Q03_PC00535
Sandwell Metropolitan Borough Council,http://www.sandwell.gov.uk/info/200202/performance_and_spending/3233/government_procurement_cards,08-Nov-2018,Total Housing Revenue Account,AMZN Mktp UK MT7J77WO4,Total Housing Revenue Account,3.06,Printing Stationery&Gen Office,1819Q03_PC00536
Sandwell Metropolitan Borough Council,http://www.sandwell.gov.uk/info/200202/performance_and_spending/3233/government_procurement_cards,08-Nov-2018,Resources (Inc SIU),SAINSBURYS SACAT0558,Assistant Chief Executive (Excl SIU),1.6,Catering Provisions,1819Q03_PC00537
Sandwell Metropolitan Borough Council,http://www.sandwell.gov.uk/info/200202/performance_and_spending/3233/government_procurement_cards,08-Nov-2018,Regeneration & Growth,PAYPAL  SANDS,Regeneration And The Economy,179.33,Ind. Emp Exp-Advertising,1819Q03_PC00538
Sandwell Metropolitan Borough Council,http://www.sandwell.gov.uk/info/200202/performance_and_spending/3233/government_procurement_cards,08-Nov-2018,Housing & Communities,MAKRO SELF SERVICE HAL,Neighbourhoods,6.98,Catering Provisions,1819Q03_PC00539
Sandwell Metropolitan Borough Council,http://www.sandwell.gov.uk/info/200202/performance_and_spending/3233/government_procurement_cards,08-Nov-2018,Childrens Services,WORKWEAR EXPRESS LIMIT,Childrens Services,216.9,Protective Clothing&Uniforms,1819Q03_PC00540
Sandwell Metropolitan Borough Council,http://www.sandwell.gov.uk/info/200202/performance_and_spending/3233/government_procurement_cards,08-Nov-2018,Total Housing Revenue Account,AMZN Mktp UK MT4BH6Y04,Total Housing Revenue Account,89.82,Materials & Consumables,1819Q03_PC00541
Sandwell Metropolitan Borough Council,http://www.sandwell.gov.uk/info/200202/performance_and_spending/3233/government_procurement_cards,08-Nov-2018,Childrens Services,FRS COUNTRYWEAR LTD,Childrens Services,627.47,Protective Clothing&Uniforms,1819Q03_PC00542
Sandwell Metropolitan Borough Council,http://www.sandwell.gov.uk/info/200202/performance_and_spending/3233/government_procurement_cards,08-Nov-2018,Childrens Services,HANDY DRY CLEANERS,Childrens Services,252,Laundry,1819Q03_PC00543
Sandwell Metropolitan Borough Council,http://www.sandwell.gov.uk/info/200202/performance_and_spending/3233/government_procurement_cards,08-Nov-2018,Adult Social Care Health and Wellbeing - Total,SAINSBURYS SACAT0558,Total Adult Social Care,18.75,Materials & Consumables,1819Q03_PC00544
Sandwell Metropolitan Borough Council,http://www.sandwell.gov.uk/info/200202/performance_and_spending/3233/government_procurement_cards,08-Nov-2018,Housing & Communities,TRAVELODGE,Neighbourhoods,78.33,Operational Services,1819Q03_PC00545
Sandwell Metropolitan Borough Council,http://www.sandwell.gov.uk/info/200202/performance_and_spending/3233/government_procurement_cards,08-Nov-2018,Childrens Services,ROWLANDS PHARMACY,Childrens Services,11.33,Materials & Consumables,1819Q03_PC00546
Sandwell Metropolitan Borough Council,http://www.sandwell.gov.uk/info/200202/performance_and_spending/3233/government_procurement_cards,08-Nov-2018,Resources (Inc SIU),AMZN MKTP UK MT2G47WG4,Assistant Chief Executive (Excl SIU),70.73,Printing Stationery&Gen Office,1819Q03_PC00547
Sandwell Metropolitan Borough Council,http://www.sandwell.gov.uk/info/200202/performance_and_spending/3233/government_procurement_cards,08-Nov-2018,Individual School Budgets With Inclusion,SANDWELL & DUD T/O,Individual School Budgets With Inclusion,29,Public Transport,1819Q03_PC00548
Sandwell Metropolitan Borough Council,http://www.sandwell.gov.uk/info/200202/performance_and_spending/3233/government_procurement_cards,08-Nov-2018,Resources (Inc SIU),SAINSBURYS SACAT0558,Assistant Chief Executive (Excl SIU),24.62,Catering Provisions,1819Q03_PC00549
Sandwell Metropolitan Borough Council,http://www.sandwell.gov.uk/info/200202/performance_and_spending/3233/government_procurement_cards,08-Nov-2018,Childrens Services,Trainline,Childrens Services,124.97,Public Transport,1819Q03_PC00550
Sandwell Metropolitan Borough Council,http://www.sandwell.gov.uk/info/200202/performance_and_spending/3233/government_procurement_cards,08-Nov-2018,Adult Social Care Health and Wellbeing - Total,TESCO STORES 2335,Total Adult Social Care,89.13,Ind. Emp Exp-Staff Dev&Training,1819Q03_PC00551
Sandwell Metropolitan Borough Council,http://www.sandwell.gov.uk/info/200202/performance_and_spending/3233/government_procurement_cards,08-Nov-2018,Adult Social Care Health and Wellbeing - Total,TESCO STORES 2335,Total Adult Social Care,34.7,Ind. Emp Exp-Staff Dev&Training,1819Q03_PC00552
Sandwell Metropolitan Borough Council,http://www.sandwell.gov.uk/info/200202/performance_and_spending/3233/government_procurement_cards,08-Nov-2018,Adult Social Care Health and Wellbeing - Total,SAINSBURYS SACAT0558,Total Adult Social Care,2,Materials & Consumables,1819Q03_PC00553
Sandwell Metropolitan Borough Council,http://www.sandwell.gov.uk/info/200202/performance_and_spending/3233/government_procurement_cards,08-Nov-2018,Childrens Services,Trainline,Childrens Services,166.12,Public Transport,1819Q03_PC00554
Sandwell Metropolitan Borough Council,http://www.sandwell.gov.uk/info/200202/performance_and_spending/3233/government_procurement_cards,08-Nov-2018,Childrens Services,THE POST OFFICE,Childrens Services,3.74,"Postages, Carriage & Courier Services",1819Q03_PC00555
Sandwell Metropolitan Borough Council,http://www.sandwell.gov.uk/info/200202/performance_and_spending/3233/government_procurement_cards,09-Nov-2018,Total Housing Revenue Account,CAPITA GAS,Total Housing Revenue Account,20,Professional Services External,1819Q03_PC00556
Sandwell Metropolitan Borough Council,http://www.sandwell.gov.uk/info/200202/performance_and_spending/3233/government_procurement_cards,09-Nov-2018,Resources (Inc SIU),AMZN MKTP UK AMAZON.CO,Assistant Chief Executive (Excl SIU),-17.49,Printing Stationery&Gen Office,1819Q03_PC00557
Sandwell Metropolitan Borough Council,http://www.sandwell.gov.uk/info/200202/performance_and_spending/3233/government_procurement_cards,09-Nov-2018,Resources Capital,Amazon.co.uk M87HX4CT4,Resources Capital,72,ICT,1819Q03_PC00558
Sandwell Metropolitan Borough Council,http://www.sandwell.gov.uk/info/200202/performance_and_spending/3233/government_procurement_cards,09-Nov-2018,Housing & Communities,PAYPAL  EVENTSINDUS,Neighbourhoods,25,Ind. Emp Exp-Staff Dev&Training,1819Q03_PC00559
Sandwell Metropolitan Borough Council,http://www.sandwell.gov.uk/info/200202/performance_and_spending/3233/government_procurement_cards,09-Nov-2018,Childrens Services,MENAI CLEANING SER,Childrens Services,120,Agency Staff,1819Q03_PC00560
Sandwell Metropolitan Borough Council,http://www.sandwell.gov.uk/info/200202/performance_and_spending/3233/government_procurement_cards,09-Nov-2018,Childrens Services,SP SERVICES UK LTD,Childrens Services,32.15,Materials & Consumables,1819Q03_PC00561
Sandwell Metropolitan Borough Council,http://www.sandwell.gov.uk/info/200202/performance_and_spending/3233/government_procurement_cards,09-Nov-2018,Adult Social Care Health and Wellbeing - Total,PAYPAL  BLACKPIGEON,Total Adult Social Care,3.71,Telephones,1819Q03_PC00562
Sandwell Metropolitan Borough Council,http://www.sandwell.gov.uk/info/200202/performance_and_spending/3233/government_procurement_cards,09-Nov-2018,Adult Social Care Health and Wellbeing - Total,PAYPAL  MOBILEEXTRA,Total Adult Social Care,4.98,Telephones,1819Q03_PC00563
Sandwell Metropolitan Borough Council,http://www.sandwell.gov.uk/info/200202/performance_and_spending/3233/government_procurement_cards,09-Nov-2018,Regeneration & Growth,WWW.ALDERCROSS.COM,Regeneration And The Economy,375,Ind. Emp Exp-Staff Dev&Training,1819Q03_PC00564
Sandwell Metropolitan Borough Council,http://www.sandwell.gov.uk/info/200202/performance_and_spending/3233/government_procurement_cards,09-Nov-2018,Adult Social Care Health and Wellbeing - Total,PAYPAL  NYALKARANLT,Total Adult Social Care,4.82,Printing Stationery&Gen Office,1819Q03_PC00565
Sandwell Metropolitan Borough Council,http://www.sandwell.gov.uk/info/200202/performance_and_spending/3233/government_procurement_cards,09-Nov-2018,Adult Social Care Health and Wellbeing - Total,NATIONAL PEN PROMOTION,Total Adult Social Care,115.95,Printing Stationery&Gen Office,1819Q03_PC00566
Sandwell Metropolitan Borough Council,http://www.sandwell.gov.uk/info/200202/performance_and_spending/3233/government_procurement_cards,09-Nov-2018,Adult Social Care Health and Wellbeing - Total,WWW.PMGLTD.CO.UK,Total Adult Social Care,355.5,Ind. Emp Exp-Staff Dev&Training,1819Q03_PC00567
Sandwell Metropolitan Borough Council,http://www.sandwell.gov.uk/info/200202/performance_and_spending/3233/government_procurement_cards,09-Nov-2018,Resources (Inc SIU),Amazon.co.uk M89B11CH4,Assistant Chief Executive (Excl SIU),22.07,Printing Stationery&Gen Office,1819Q03_PC00568
Sandwell Metropolitan Borough Council,http://www.sandwell.gov.uk/info/200202/performance_and_spending/3233/government_procurement_cards,09-Nov-2018,Housing & Communities,WM MORRISONS STORE,Neighbourhoods,1.9,Catering Provisions,1819Q03_PC00569
Sandwell Metropolitan Borough Council,http://www.sandwell.gov.uk/info/200202/performance_and_spending/3233/government_procurement_cards,09-Nov-2018,Resources (Inc SIU),ROBERT DYAS HOLDNG LTD,Assistant Chief Executive (Excl SIU),14.26,ICT,1819Q03_PC00570
Sandwell Metropolitan Borough Council,http://www.sandwell.gov.uk/info/200202/performance_and_spending/3233/government_procurement_cards,09-Nov-2018,Total Housing Revenue Account,Amazon.co.uk M89FO7C84,Total Housing Revenue Account,4.05,Materials & Consumables,1819Q03_PC00571
Sandwell Metropolitan Borough Council,http://www.sandwell.gov.uk/info/200202/performance_and_spending/3233/government_procurement_cards,09-Nov-2018,Adult Social Care Health and Wellbeing - Total,TIMPSON LTD,Total Adult Social Care,11.25,Fixtures & Fittings,1819Q03_PC00572
Sandwell Metropolitan Borough Council,http://www.sandwell.gov.uk/info/200202/performance_and_spending/3233/government_procurement_cards,09-Nov-2018,Adult Social Care Health and Wellbeing - Total,WWW.HEALTHCARECONFEREN,Total Adult Social Care,355.5,Conference Expenses,1819Q03_PC00573
Sandwell Metropolitan Borough Council,http://www.sandwell.gov.uk/info/200202/performance_and_spending/3233/government_procurement_cards,09-Nov-2018,Total Housing Revenue Account,CREATIVE HONOUR BOARDS,Total Housing Revenue Account,14.06,Materials & Consumables,1819Q03_PC00574
Sandwell Metropolitan Borough Council,http://www.sandwell.gov.uk/info/200202/performance_and_spending/3233/government_procurement_cards,09-Nov-2018,Childrens Services,WWW.GOMPELS.CO.UK,Childrens Services,56.22,Materials & Consumables,1819Q03_PC00575
Sandwell Metropolitan Borough Council,http://www.sandwell.gov.uk/info/200202/performance_and_spending/3233/government_procurement_cards,09-Nov-2018,Childrens Services,ASDA STORES 4253,Childrens Services,1.25,Materials & Consumables,1819Q03_PC00576
Sandwell Metropolitan Borough Council,http://www.sandwell.gov.uk/info/200202/performance_and_spending/3233/government_procurement_cards,09-Nov-2018,Housing & Communities,EDGBASTON PALACE,Neighbourhoods,75,Operational Services,1819Q03_PC00577
Sandwell Metropolitan Borough Council,http://www.sandwell.gov.uk/info/200202/performance_and_spending/3233/government_procurement_cards,09-Nov-2018,Resources (Inc SIU),AMZN Mktp UK M81FV3C44,Assistant Chief Executive (Excl SIU),19.48,ICT,1819Q03_PC00578
Sandwell Metropolitan Borough Council,http://www.sandwell.gov.uk/info/200202/performance_and_spending/3233/government_procurement_cards,09-Nov-2018,Regeneration & Growth,ARCO LTD,Regeneration And The Economy,44.27,Protective Clothing&Uniforms,1819Q03_PC00579
Sandwell Metropolitan Borough Council,http://www.sandwell.gov.uk/info/200202/performance_and_spending/3233/government_procurement_cards,09-Nov-2018,Resources (Inc SIU),B & Q 1276,Assistant Chief Executive (Excl SIU),75.61,Bereavement Expenses,1819Q03_PC00580
Sandwell Metropolitan Borough Council,http://www.sandwell.gov.uk/info/200202/performance_and_spending/3233/government_procurement_cards,09-Nov-2018,Total Housing Revenue Account,Amazon.co.uk M86EZ6CZ4,Total Housing Revenue Account,49.7,Materials & Consumables,1819Q03_PC00581
Sandwell Metropolitan Borough Council,http://www.sandwell.gov.uk/info/200202/performance_and_spending/3233/government_procurement_cards,09-Nov-2018,Resources (Inc SIU),AMZN Mktp UK M82ES1CJ4,Assistant Chief Executive (Excl SIU),9.77,ICT,1819Q03_PC00582
Sandwell Metropolitan Borough Council,http://www.sandwell.gov.uk/info/200202/performance_and_spending/3233/government_procurement_cards,12-Nov-2018,Housing & Communities,LEAFIELD ENVIRONME,Neighbourhoods,19,R& M - Building Maint&Imp.,1819Q03_PC00583
Sandwell Metropolitan Borough Council,http://www.sandwell.gov.uk/info/200202/performance_and_spending/3233/government_procurement_cards,12-Nov-2018,Regeneration & Growth,FASTPAK,Regeneration And The Economy,14.28,Equipment & Furniture,1819Q03_PC00584
Sandwell Metropolitan Borough Council,http://www.sandwell.gov.uk/info/200202/performance_and_spending/3233/government_procurement_cards,12-Nov-2018,Resources (Inc SIU),LON STCK EXC/NET,Assistant Chief Executive (Excl SIU),70,Licences,1819Q03_PC00585
Sandwell Metropolitan Borough Council,http://www.sandwell.gov.uk/info/200202/performance_and_spending/3233/government_procurement_cards,12-Nov-2018,Resources (Inc SIU),DOUBLETREE,Assistant Chief Executive (Excl SIU),959.75,Conference Expenses,1819Q03_PC00586
Sandwell Metropolitan Borough Council,http://www.sandwell.gov.uk/info/200202/performance_and_spending/3233/government_procurement_cards,12-Nov-2018,Childrens Services,WWW.QUICKSARCHERY.CO.U,Childrens Services,68.49,Materials & Consumables,1819Q03_PC00587
Sandwell Metropolitan Borough Council,http://www.sandwell.gov.uk/info/200202/performance_and_spending/3233/government_procurement_cards,12-Nov-2018,Childrens Services,WWW.SAFETYFIRSTAID.CO.,Childrens Services,37.8,Equipment & Furniture,1819Q03_PC00588
Sandwell Metropolitan Borough Council,http://www.sandwell.gov.uk/info/200202/performance_and_spending/3233/government_procurement_cards,12-Nov-2018,Childrens Services,AMZN MKTP UK M857L3OT4,Childrens Services,16.22,Printing Stationery&Gen Office,1819Q03_PC00589
Sandwell Metropolitan Borough Council,http://www.sandwell.gov.uk/info/200202/performance_and_spending/3233/government_procurement_cards,12-Nov-2018,Adult Social Care Health and Wellbeing - Total,PAYPAL  SALES0104,Total Adult Social Care,18.29,Printing Stationery&Gen Office,1819Q03_PC00590
Sandwell Metropolitan Borough Council,http://www.sandwell.gov.uk/info/200202/performance_and_spending/3233/government_procurement_cards,12-Nov-2018,Housing & Communities,SCREWFIX DIRECT,Neighbourhoods,9.99,R& M - Building Maint&Imp.,1819Q03_PC00591
Sandwell Metropolitan Borough Council,http://www.sandwell.gov.uk/info/200202/performance_and_spending/3233/government_procurement_cards,12-Nov-2018,Childrens Services,AMZN MKTP UK M82KS0OU4,Childrens Services,56.65,Materials & Consumables,1819Q03_PC00592
Sandwell Metropolitan Borough Council,http://www.sandwell.gov.uk/info/200202/performance_and_spending/3233/government_procurement_cards,12-Nov-2018,Total Housing Revenue Account,POST OFFICE COUNTER,Total Housing Revenue Account,150,Printing Stationery&Gen Office,1819Q03_PC00593
Sandwell Metropolitan Borough Council,http://www.sandwell.gov.uk/info/200202/performance_and_spending/3233/government_procurement_cards,12-Nov-2018,Housing & Communities,AMZN MKTP UK M84ZK0FP4,Neighbourhoods,22.01,Materials & Consumables,1819Q03_PC00594
Sandwell Metropolitan Borough Council,http://www.sandwell.gov.uk/info/200202/performance_and_spending/3233/government_procurement_cards,12-Nov-2018,Adult Social Care Health and Wellbeing - Total,CHARTERED INSTITUTE OF,Total Adult Social Care,40,Ind. Emp Exp-Staff Dev&Training,1819Q03_PC00595
Sandwell Metropolitan Borough Council,http://www.sandwell.gov.uk/info/200202/performance_and_spending/3233/government_procurement_cards,12-Nov-2018,Housing & Communities,SANDWELL M.B.C.,Neighbourhoods,70,Ind. Emp Exp-Insurance,1819Q03_PC00596
Sandwell Metropolitan Borough Council,http://www.sandwell.gov.uk/info/200202/performance_and_spending/3233/government_procurement_cards,12-Nov-2018,Individual School Budgets With Inclusion,SMETHWICK RS SST,Individual School Budgets With Inclusion,13.5,Public Transport,1819Q03_PC00597
Sandwell Metropolitan Borough Council,http://www.sandwell.gov.uk/info/200202/performance_and_spending/3233/government_procurement_cards,12-Nov-2018,Housing & Communities,Trainline,Neighbourhoods,51.82,Public Transport,1819Q03_PC00598
Sandwell Metropolitan Borough Council,http://www.sandwell.gov.uk/info/200202/performance_and_spending/3233/government_procurement_cards,12-Nov-2018,Resources (Inc SIU),AMZN Mktp UK M88F14OI4,Assistant Chief Executive (Excl SIU),6.28,ICT,1819Q03_PC00599
Sandwell Metropolitan Borough Council,http://www.sandwell.gov.uk/info/200202/performance_and_spending/3233/government_procurement_cards,12-Nov-2018,Childrens Services,MAHOOD FLORAL LTD,Childrens Services,104.97,Materials & Consumables,1819Q03_PC00600
Sandwell Metropolitan Borough Council,http://www.sandwell.gov.uk/info/200202/performance_and_spending/3233/government_procurement_cards,12-Nov-2018,Resources (Inc SIU),DUDLEY MET CNL ATP,Assistant Chief Executive (Excl SIU),-3,Bereavement Expenses,1819Q03_PC00601
Sandwell Metropolitan Borough Council,http://www.sandwell.gov.uk/info/200202/performance_and_spending/3233/government_procurement_cards,12-Nov-2018,Resources (Inc SIU),LIFESTYLE EXPRESS 7909,Assistant Chief Executive (Excl SIU),8,Grounds Maint&Improvements,1819Q03_PC00602
Sandwell Metropolitan Borough Council,http://www.sandwell.gov.uk/info/200202/performance_and_spending/3233/government_procurement_cards,12-Nov-2018,Adult Social Care Health and Wellbeing - Total,AMZN MKTP UK M80R37FZ4,Total Adult Social Care,54.76,ICT,1819Q03_PC00603
Sandwell Metropolitan Borough Council,http://www.sandwell.gov.uk/info/200202/performance_and_spending/3233/government_procurement_cards,12-Nov-2018,Resources (Inc SIU),SAINSBURYS SACAT0558,Assistant Chief Executive (Excl SIU),8,Catering Provisions,1819Q03_PC00604
Sandwell Metropolitan Borough Council,http://www.sandwell.gov.uk/info/200202/performance_and_spending/3233/government_procurement_cards,12-Nov-2018,Regeneration & Growth,AMZN Mktp UK M896I5L44,Regeneration And The Economy,5.49,Printing Stationery&Gen Office,1819Q03_PC00605
Sandwell Metropolitan Borough Council,http://www.sandwell.gov.uk/info/200202/performance_and_spending/3233/government_procurement_cards,12-Nov-2018,Regeneration & Growth,AMZN Mktp UK M82689LE4,Regeneration And The Economy,13.32,Printing Stationery&Gen Office,1819Q03_PC00606
Sandwell Metropolitan Borough Council,http://www.sandwell.gov.uk/info/200202/performance_and_spending/3233/government_procurement_cards,12-Nov-2018,Childrens Services,AMZN MKTP UK M864974K4,Childrens Services,1.92,Printing Stationery&Gen Office,1819Q03_PC00607
Sandwell Metropolitan Borough Council,http://www.sandwell.gov.uk/info/200202/performance_and_spending/3233/government_procurement_cards,12-Nov-2018,Resources (Inc SIU),AMZN Mktp UK M81989L54,Assistant Chief Executive (Excl SIU),21.99,ICT,1819Q03_PC00608
